Body Name,Body,Service Division Label,Service Division Code,Organisational Unit,Expenditure Category,Expenditure Code,CIPFA detailed expediture type,CIPFA detailed expediture code,Narrative,Date,Transaction number,Net Amount,Capital and Revenue,Supplier Name,Supplier ID
Chorley Borough Council,http://statistics.data.gov.uk/id/local-authority/30UE,Central Support Services,1009,Early Intervention,Works In Default,40199,Miscellaneous Expenses,5034,"Undertake works, in default of a Public Health Act 1936 & 1961 Section 83 (as Amended) SO/18/00463/GRFV expired 11 May18. ",13/06/2018,130152,"2,507.63",Revenue,3D Environmental Limited,76994
Chorley Borough Council,http://statistics.data.gov.uk/id/local-authority/30UE,Unapportionable Central OHeads,1009,Policy & Governance,General Subscriptions,40146,Grants and Subscriptions,5031,Subscription to Themis - Public Sector Licence for the period 30th June 2018 to 29th June 2019,06/06/2018,130002,735.00,Revenue,Achilles Information Ltd,48393
Chorley Borough Council,http://statistics.data.gov.uk/id/local-authority/30UE,Democratic Represent and  Mgnt,1007,Early Intervention,External Contractor - Trust or Charity,50008,Private Contractors,5042,Active Nation Annual Management Fee 2018-2019,29/06/2018,129520,"33,911.84",Revenue,Active Nation UK Ltd,17144
Chorley Borough Council,http://statistics.data.gov.uk/id/local-authority/30UE,Democratic Represent and  Mgnt,1007,Early Intervention,External Contractor - Trust or Charity,50008,Private Contractors,5042,Active Nation Annual Management Fee 2018-2019,29/06/2018,130088,"33,911.84",Revenue,Active Nation UK Ltd,17144
Chorley Borough Council,http://statistics.data.gov.uk/id/local-authority/30UE,Unapportionable Central OHeads,1009,Policy & Governance,Burglar Alarms & Security Systems,20075,Fixtures and Fittings,5010,Supply of 100 Access Cards for use with Excelsior Access System,27/06/2018,130611,479.00,Revenue,ADT Fire & Security,16645
Chorley Borough Council,http://statistics.data.gov.uk/id/local-authority/30UE,Capital,Capital,Business Development & Growth,Architects Fees,3022,Capital Expenditure,Capital,tenant liaison services Sept 2017 to March 2018,06/06/2018,129924,"12,273.75",Capital,AEW Architects & Designers Ltd,66520
Chorley Borough Council,http://statistics.data.gov.uk/id/local-authority/30UE,Capital,Capital,Business Development & Growth,Architects Fees,3022,Capital Expenditure,Capital,Tenant liaison service from April 2018 to September 2019,27/06/2018,130626,"2,482.50",Capital,AEW Architects & Designers Ltd,66520
Chorley Borough Council,http://statistics.data.gov.uk/id/local-authority/30UE,Unapportionable Central OHeads,1009,Customer & Digital,Bank Charges,40151,Miscellaneous Expenses,5034,add ac fee,08/06/2018,130085,10.37,Revenue,Allpay Net Ltd,17242
Chorley Borough Council,http://statistics.data.gov.uk/id/local-authority/30UE,Unapportionable Central OHeads,1009,Customer & Digital,Bank Charges,40151,Miscellaneous Expenses,5034,post off tran,08/06/2018,130085,986.31,Revenue,Allpay Net Ltd,17242
Chorley Borough Council,http://statistics.data.gov.uk/id/local-authority/30UE,Unapportionable Central OHeads,1009,Customer & Digital,Bank Charges,40151,Miscellaneous Expenses,5034,paypoint,08/06/2018,130085,609.68,Revenue,Allpay Net Ltd,17242
Chorley Borough Council,http://statistics.data.gov.uk/id/local-authority/30UE,Unapportionable Central OHeads,1009,Customer & Digital,Bank Charges,40151,Miscellaneous Expenses,5034,webcon,08/06/2018,130085,47.72,Revenue,Allpay Net Ltd,17242
Chorley Borough Council,http://statistics.data.gov.uk/id/local-authority/30UE,Democratic Represent and  Mgnt,1007,Customer & Digital,Supplies-Grounds Maintenance,40025,"Equipment, Furniture & Materia",5023,1000mm diameter Cup & Saucer Precinct Planter Colour Fuschia 2 x 1000mm diameter Cup & Saucer Precinct Planter Colour ,27/06/2018,130613,"1,812.00",Revenue,Amberol,64554
Chorley Borough Council,http://statistics.data.gov.uk/id/local-authority/30UE,Capital,Capital,Business Development & Growth,Main Contractor,3007,Capital Expenditure,Capital,Server room data cabling and trays as per upgrade,15/06/2018,130135,"1,689.00",Capital,Ampec,76813
Chorley Borough Council,http://statistics.data.gov.uk/id/local-authority/30UE,Unapportionable Central OHeads,1009,Policy & Governance,Car Leasing Payment,14100,Direct Employee Expenses,5001,NAME REDACTED,15/06/2018,130090,348.58,Revenue,Arnold Clark Finance Ltd,20685
Chorley Borough Council,http://statistics.data.gov.uk/id/local-authority/30UE,Unapportionable Central OHeads,1009,Policy & Governance,Car Leasing Payment,14100,Direct Employee Expenses,5001,Car Leasing,15/06/2018,130090,27.25,Revenue,Arnold Clark Finance Ltd,20685
Chorley Borough Council,http://statistics.data.gov.uk/id/local-authority/30UE,Control Accounts,Control,Policy & Governance,Manual Control Account,1,Balance Sheet,Balance,Balance Sheet,15/06/2018,130090,-27.25,Revenue,Arnold Clark Finance Ltd,20685
Chorley Borough Council,http://statistics.data.gov.uk/id/local-authority/30UE,Unapportionable Central OHeads,1009,Policy & Governance,Exhibitions & Special Events,40158,Miscellaneous Expenses,5034,May half term activities,13/06/2018,130091,252.50,Revenue,ARTventurers Preston Chorley and Leyland,76837
Chorley Borough Council,http://statistics.data.gov.uk/id/local-authority/30UE,Capital,Capital,Business Development & Growth,Main Contractor,3007,Capital Expenditure,Capital,Prepare and Apply Coatings to Remaining Canopies and Lampposts at Chorley Market.,15/06/2018,130187,"16,383.00",Capital,Bagnalls,77004
Chorley Borough Council,http://statistics.data.gov.uk/id/local-authority/30UE,Service Management & Support,1009,Customer & Digital,Hire of Plant,40001,"Equipment, Furniture & Materia",5023,hire of a John Deere front deck rotary for 4 weeks @ 300 per week starting 07/05/2018 Includes delivery/ collection Bengal St,08/06/2018,130177,"1,260.00",Revenue,Balmers Garden Machinery,17075
Chorley Borough Council,http://statistics.data.gov.uk/id/local-authority/30UE,Service Management & Support,1009,Customer & Digital,Hire of Plant,40001,"Equipment, Furniture & Materia",5023,for the extension of hire of John Deere front deck mower from 05/06/18 - 26/06/18 @ 300 per week,29/06/2018,130631,900.00,Revenue,Balmers Garden Machinery,17075
Chorley Borough Council,http://statistics.data.gov.uk/id/local-authority/30UE,Tourism,1039,Policy & Governance,Publicity - Advertising,40157,Miscellaneous Expenses,5034,Chorley Flower Show advert,06/06/2018,130005,450.00,Revenue,Bauer Active Ltd,50574
Chorley Borough Council,http://statistics.data.gov.uk/id/local-authority/30UE,Democratic Represent and  Mgnt,1007,Chief Executive,Other Fees,40212,Miscellaneous Expenses,5034,Contribution to Growth Lancashire 2018 / 2019,29/06/2018,130641,"15,000.00",Revenue,Blackburn with Darwen Borough Council,21000
Chorley Borough Council,http://statistics.data.gov.uk/id/local-authority/30UE,Business Support,1095,Business Development & Growth,Grants To Other Organisations,40127,Grants and Subscriptions,5031,start grant,06/06/2018,129997,250.00,Revenue,NAME REDACTED,77369
Chorley Borough Council,http://statistics.data.gov.uk/id/local-authority/30UE,Corporate Management,1008,Customer & Digital,Certificate Of Burial Fees,60080,Customer & Client Receipts,5064,REFUND,15/06/2018,129814,848.50,Revenue,NAME REDACTED,77348
Chorley Borough Council,http://statistics.data.gov.uk/id/local-authority/30UE,Unapportionable Central OHeads,1009,Policy & Governance,Exhibitions & Special Events,40158,Miscellaneous Expenses,5034,Performance at picnic in the park 3/6/18,06/06/2018,130045,270.00,Revenue,Brian Gore,18370
Chorley Borough Council,http://statistics.data.gov.uk/id/local-authority/30UE,Unapportionable Central OHeads,1009,Policy & Governance,Mayors Medals,40029,"Equipment, Furniture & Materia",5023,Add name to ex-mayor`s board in the Council Chamber.,06/06/2018,130006,320.00,Revenue,Brian the Brush Ltd,60093
Chorley Borough Council,http://statistics.data.gov.uk/id/local-authority/30UE,Capital,Capital,Business Development & Growth,Equipment,3014,Capital Expenditure,Capital,12 no BX47 semi domed stainless steel bollards 316 grade Root fixed 1000mm 114mm diameter Not recessed Reflective band,15/06/2018,130295,946.00,Capital,Broxap Ltd,16718
Chorley Borough Council,http://statistics.data.gov.uk/id/local-authority/30UE,Service Management & Support,1009,Customer & Digital,Supplies-Grounds Maintenance,40025,"Equipment, Furniture & Materia",5023,"Emptying of interceptor tanks and clearing/jetting drains at Bengal St Depot, to comply with EA Licence conditions at agreed cost",06/06/2018,130046,325.00,Revenue,C J Lyon,16579
Chorley Borough Council,http://statistics.data.gov.uk/id/local-authority/30UE,Service Management & Support,1009,Customer & Digital,Vehicles and Plant Maintenance,30045,Direct Transport Costs,5016,Complete Service & MOT to RV14 DVB as per your performa invoice job number 0109 dated 21/05/18,08/06/2018,130136,"1,507.44",Revenue,C P Davidson & Sons Ltd,21093
Chorley Borough Council,http://statistics.data.gov.uk/id/local-authority/30UE,Unapportionable Central OHeads,1009,Customer & Digital,Emergency Call Out System,40096,Communication and Computing,5028,Out of hours call charges October 2017,20/06/2018,130137,500.00,Revenue,CallCare Ltd,20257
Chorley Borough Council,http://statistics.data.gov.uk/id/local-authority/30UE,Unapportionable Central OHeads,1009,Customer & Digital,Emergency Call Out System,40096,Communication and Computing,5028,Out of hours standing charge November 2017,20/06/2018,130137,86.20,Revenue,CallCare Ltd,20257
Chorley Borough Council,http://statistics.data.gov.uk/id/local-authority/30UE,Service Management & Support,1009,Customer & Digital,Supplies - Workshop,40246,"Equipment, Furniture & Materia",5023,"As per quotation Q15909; HU-295673220 BLADE To be delivered to Bengal St, PR7 1SA",15/06/2018,130230,310.72,Revenue,Cheshire Turf Machinery Ltd,76973
Chorley Borough Council,http://statistics.data.gov.uk/id/local-authority/30UE,Parking Services,1066,Business Development & Growth,External Contractors,50008,Private Contractors,5042,Processing 077 - Order for Recovery Postage & Packing (estimated) for period of 01.04.17 - 31.03.18,08/06/2018,128528,"1,211.82",Revenue,Chipside Ltd,22063
Chorley Borough Council,http://statistics.data.gov.uk/id/local-authority/30UE,Parking Services,1066,Business Development & Growth,External Contractors,50008,Private Contractors,5042,Processing 075 - Notice to Owner Postage and Packing (estimated) for period of 01.04.17 - 31.03.18,08/06/2018,128529,"1,308.09",Revenue,Chipside Ltd,22063
Chorley Borough Council,http://statistics.data.gov.uk/id/local-authority/30UE,Parking Services,1066,Business Development & Growth,External Contractors,50008,Private Contractors,5042,Processing 076 - Charge Certificate Postage & Packing (estimated) for period of 01.04.17 - 31.03.18,08/06/2018,128529,23.56,Revenue,Chipside Ltd,22063
Chorley Borough Council,http://statistics.data.gov.uk/id/local-authority/30UE,Parking Services,1066,Business Development & Growth,External Contractors,50008,Private Contractors,5042,Processing 077 - Order for Recovery Postage & Packing (estimated) for period of 01.04.17 - 31.03.18,08/06/2018,128529,3.95,Revenue,Chipside Ltd,22063
Chorley Borough Council,http://statistics.data.gov.uk/id/local-authority/30UE,Parking Services,1066,Business Development & Growth,External Contractors,50008,Private Contractors,5042,Processing 080 - Business Permit Postage & Packing (estimated) for period of 01.04.17 - 31.03.18,08/06/2018,128529,83.72,Revenue,Chipside Ltd,22063
Chorley Borough Council,http://statistics.data.gov.uk/id/local-authority/30UE,Parking Services,1066,Business Development & Growth,External Contractors,50008,Private Contractors,5042,Processing 075 - Notice to Owner Postage and Packing (estimated) for period of 01.04.17 - 31.03.18,08/06/2018,128530,48.72,Revenue,Chipside Ltd,22063
Chorley Borough Council,http://statistics.data.gov.uk/id/local-authority/30UE,Parking Services,1066,Business Development & Growth,External Contractors,50008,Private Contractors,5042,Processing 076 - Charge Certificate Postage & Packing (estimated) for period of 01.04.17 - 31.03.18,08/06/2018,128530,35.72,Revenue,Chipside Ltd,22063
Chorley Borough Council,http://statistics.data.gov.uk/id/local-authority/30UE,Parking Services,1066,Business Development & Growth,External Contractors,50008,Private Contractors,5042,Processing 077 - Order for Recovery Postage & Packing (estimated) for period of 01.04.17 - 31.03.18,08/06/2018,128530,109.31,Revenue,Chipside Ltd,22063
Chorley Borough Council,http://statistics.data.gov.uk/id/local-authority/30UE,Parking Services,1066,Business Development & Growth,External Contractors,50008,Private Contractors,5042,Processing 011 - Season Ticket @ 1.99 each (estimated) for period of 01.04.17 - 31.03.18,08/06/2018,128530,"1,169.82",Revenue,Chipside Ltd,22063
Chorley Borough Council,http://statistics.data.gov.uk/id/local-authority/30UE,Parking Services,1066,Business Development & Growth,External Contractors,50008,Private Contractors,5042,Processing 085 - Reminders letters for Resident / Business Permits Postage & Packing (estimated) period of 01.04.17 31.03.18,08/06/2018,128531,378.08,Revenue,Chipside Ltd,22063
Chorley Borough Council,http://statistics.data.gov.uk/id/local-authority/30UE,Parking Services,1066,Business Development & Growth,External Contractors,50008,Private Contractors,5042,Processing 077 - Order for Recovery Postage & Packing (estimated) for period of 01.04.17 - 31.03.18,08/06/2018,128532,"1,194.78",Revenue,Chipside Ltd,22063
Chorley Borough Council,http://statistics.data.gov.uk/id/local-authority/30UE,Parking Services,1066,Business Development & Growth,External Contractors,50008,Private Contractors,5042,Processing 080 - Business Permit Postage & Packing (estimated) for period of 01.04.17 - 31.03.18,08/06/2018,128533,324.36,Revenue,Chipside Ltd,22063
Chorley Borough Council,http://statistics.data.gov.uk/id/local-authority/30UE,Parking Services,1066,Business Development & Growth,External Contractors,50008,Private Contractors,5042,Processing 085 - Reminders letters for Resident / Business Permits Postage & Packing (estimated) period of 01.04.17 - 31.03.18,08/06/2018,128533,65.96,Revenue,Chipside Ltd,22063
Chorley Borough Council,http://statistics.data.gov.uk/id/local-authority/30UE,Parking Services,1066,Business Development & Growth,External Contractors,50008,Private Contractors,5042,Processing 076 - Charge Certificate Postage & Packing (estimated) for period of 01.04.17 - 31.03.18,08/06/2018,128534,"1,348.02",Revenue,Chipside Ltd,22063
Chorley Borough Council,http://statistics.data.gov.uk/id/local-authority/30UE,Parking Services,1066,Business Development & Growth,External Contractors,50008,Private Contractors,5042,Processing 076 - Charge Certificate Postage & Packing (estimated) for period of 01.04.17 - 31.03.18,08/06/2018,128535,592.17,Revenue,Chipside Ltd,22063
Chorley Borough Council,http://statistics.data.gov.uk/id/local-authority/30UE,Parking Services,1066,Business Development & Growth,External Contractors,50008,Private Contractors,5042,Processing 074 - Provision of Notice Processing Services for period of 01.04.17 - 31.03.18 Notice Processing Services Automated,08/06/2018,128536,"1,356.06",Revenue,Chipside Ltd,22063
Chorley Borough Council,http://statistics.data.gov.uk/id/local-authority/30UE,Parking Services,1066,Business Development & Growth,External Contractors,50008,Private Contractors,5042,Processing 075 - Notice to Owner Postage and Packing (estimated) for period of 01.04.17 - 31.03.18,08/06/2018,128536,160.20,Revenue,Chipside Ltd,22063
Chorley Borough Council,http://statistics.data.gov.uk/id/local-authority/30UE,Parking Services,1066,Business Development & Growth,External Contractors,50008,Private Contractors,5042,Processing 074 - Provision of Notice Processing Services for period of 01.04.17 - 31.03.18 -Notice Processing Services Automated,08/06/2018,128537,"1,242.57",Revenue,Chipside Ltd,22063
Chorley Borough Council,http://statistics.data.gov.uk/id/local-authority/30UE,Parking Services,1066,Business Development & Growth,External Contractors,50008,Private Contractors,5042,Processing 086 - Other Correspondence Postage & Packing (such as responses to Pre & Post NTO/CC/OofR etc). (estimated) ,08/06/2018,128537,165.00,Revenue,Chipside Ltd,22063
Chorley Borough Council,http://statistics.data.gov.uk/id/local-authority/30UE,Parking Services,1066,Business Development & Growth,External Contractors,50008,Private Contractors,5042,Processing 074 - Provision of Notice Processing Services for period of 01.04.17 - 31.03.18 -Notice Processing Services Automated,08/06/2018,128538,"1,053.42",Revenue,Chipside Ltd,22063
Chorley Borough Council,http://statistics.data.gov.uk/id/local-authority/30UE,Parking Services,1066,Business Development & Growth,External Contractors,50008,Private Contractors,5042,Processing 086 - Other Correspondence Postage & Packing (such as responses to Pre & Post NTO/CC/OofR etc). (estimated) ,08/06/2018,128538,193.20,Revenue,Chipside Ltd,22063
Chorley Borough Council,http://statistics.data.gov.uk/id/local-authority/30UE,Parking Services,1066,Business Development & Growth,External Contractors,50008,Private Contractors,5042,Processing 074 - Provision of Notice Processing Services for period of 01.04.17 - 31.03.18 -Notice Processing Services Automated,08/06/2018,129114,267.72,Revenue,Chipside Ltd,22063
Chorley Borough Council,http://statistics.data.gov.uk/id/local-authority/30UE,Parking Services,1066,Business Development & Growth,External Contractors,50008,Private Contractors,5042,Processing 086 - Other Correspondence Postage & Packing (such as responses to Pre & Post NTO/CC/OofR etc). (estimated) ,08/06/2018,129114,119.40,Revenue,Chipside Ltd,22063
Chorley Borough Council,http://statistics.data.gov.uk/id/local-authority/30UE,Parking Services,1066,Business Development & Growth,External Contractors,50008,Private Contractors,5042,74,15/06/2018,129571,864.27,Revenue,Chipside Ltd,22063
Chorley Borough Council,http://statistics.data.gov.uk/id/local-authority/30UE,Parking Services,1066,Business Development & Growth,External Contractors,50008,Private Contractors,5042,Apportionment of ongoing technical costs as agreed between Chipside and the Lancashire District Councils for parking services,08/06/2018,129573,"1,363.11",Revenue,Chipside Ltd,22063
Chorley Borough Council,http://statistics.data.gov.uk/id/local-authority/30UE,Corporate Management,1008,Early Intervention,Taxi Testing & Vehicle Safety Report,40234,Services,5027,mot,20/06/2018,130367,"1,371.25",Revenue,Chorley Autocare Ltd,17110
Chorley Borough Council,http://statistics.data.gov.uk/id/local-authority/30UE,Corporate Management,1008,Early Intervention,Taxi Testing & Vehicle Safety Report,40234,Services,5027,taxi test,20/06/2018,130367,213.75,Revenue,Chorley Autocare Ltd,17110
Chorley Borough Council,http://statistics.data.gov.uk/id/local-authority/30UE,Central Support Services,1009,Chief Executive,Miscellaneous Expenses,40200,Miscellaneous Expenses,5034,solicitors,06/06/2018,130050,5.00,Revenue,Chorley BC Petty Cash,16301
Chorley Borough Council,http://statistics.data.gov.uk/id/local-authority/30UE,Central Support Services,1009,Chief Executive,Sports Development Initiatives,40186,Miscellaneous Expenses,5034,girls hems,06/06/2018,130050,14.40,Revenue,Chorley BC Petty Cash,16301
Chorley Borough Council,http://statistics.data.gov.uk/id/local-authority/30UE,Business Support,1095,Chief Executive,Miscellaneous Expenses,40200,Miscellaneous Expenses,5034,spare keys,06/06/2018,130050,6.88,Revenue,Chorley BC Petty Cash,16301
Chorley Borough Council,http://statistics.data.gov.uk/id/local-authority/30UE,Central Support Services,1009,Chief Executive,Play Events,40181,Miscellaneous Expenses,5034,milk,06/06/2018,130050,8.85,Revenue,Chorley BC Petty Cash,16301
Chorley Borough Council,http://statistics.data.gov.uk/id/local-authority/30UE,Central Support Services,1009,Chief Executive,Play Events,40181,Miscellaneous Expenses,5034,sugar,06/06/2018,130050,1.71,Revenue,Chorley BC Petty Cash,16301
Chorley Borough Council,http://statistics.data.gov.uk/id/local-authority/30UE,Central Support Services,1009,Chief Executive,Miscellaneous Expenses,40200,Miscellaneous Expenses,5034,equipment,06/06/2018,130050,0.84,Revenue,Chorley BC Petty Cash,16301
Chorley Borough Council,http://statistics.data.gov.uk/id/local-authority/30UE,Central Support Services,1009,Chief Executive,Miscellaneous Expenses,40200,Miscellaneous Expenses,5034,food,06/06/2018,130050,16.08,Revenue,Chorley BC Petty Cash,16301
Chorley Borough Council,http://statistics.data.gov.uk/id/local-authority/30UE,Central Support Services,1009,Chief Executive,Miscellaneous Expenses,40200,Miscellaneous Expenses,5034,ingredients,06/06/2018,130050,3.79,Revenue,Chorley BC Petty Cash,16301
Chorley Borough Council,http://statistics.data.gov.uk/id/local-authority/30UE,Central Support Services,1009,Chief Executive,Miscellaneous Expenses,40200,Miscellaneous Expenses,5034,ingredients,06/06/2018,130050,16.39,Revenue,Chorley BC Petty Cash,16301
Chorley Borough Council,http://statistics.data.gov.uk/id/local-authority/30UE,Central Support Services,1009,Chief Executive,Miscellaneous Expenses,40200,Miscellaneous Expenses,5034,gloves,06/06/2018,130050,0.57,Revenue,Chorley BC Petty Cash,16301
Chorley Borough Council,http://statistics.data.gov.uk/id/local-authority/30UE,Central Support Services,1009,Chief Executive,Miscellaneous Expenses,40200,Miscellaneous Expenses,5034,materials,06/06/2018,130050,2.75,Revenue,Chorley BC Petty Cash,16301
Chorley Borough Council,http://statistics.data.gov.uk/id/local-authority/30UE,Central Support Services,1009,Chief Executive,Miscellaneous Expenses,40200,Miscellaneous Expenses,5034,ingredients,06/06/2018,130050,16.26,Revenue,Chorley BC Petty Cash,16301
Chorley Borough Council,http://statistics.data.gov.uk/id/local-authority/30UE,Central Support Services,1009,Chief Executive,Miscellaneous Expenses,40200,Miscellaneous Expenses,5034,materials,06/06/2018,130050,2.78,Revenue,Chorley BC Petty Cash,16301
Chorley Borough Council,http://statistics.data.gov.uk/id/local-authority/30UE,Elections,1012,Chief Executive,Tools & Equipment - Purchase,40003,"Equipment, Furniture & Materia",5023,chain,06/06/2018,130050,8.69,Revenue,Chorley BC Petty Cash,16301
Chorley Borough Council,http://statistics.data.gov.uk/id/local-authority/30UE,Unapportionable Central OHeads,1009,Chief Executive,Tools & Equipment - Purchase,40003,"Equipment, Furniture & Materia",5023,tools,06/06/2018,130050,1.50,Revenue,Chorley BC Petty Cash,16301
Chorley Borough Council,http://statistics.data.gov.uk/id/local-authority/30UE,Elections,1012,Chief Executive,Tools & Equipment - Purchase,40003,"Equipment, Furniture & Materia",5023,tools,06/06/2018,130050,8.13,Revenue,Chorley BC Petty Cash,16301
Chorley Borough Council,http://statistics.data.gov.uk/id/local-authority/30UE,Economic Development,1096,Chief Executive,Miscellaneous Expenses,40200,Miscellaneous Expenses,5034,posatge,06/06/2018,130050,2.11,Revenue,Chorley BC Petty Cash,16301
Chorley Borough Council,http://statistics.data.gov.uk/id/local-authority/30UE,Economic Development,1096,Chief Executive,Miscellaneous Expenses,40200,Miscellaneous Expenses,5034,postage,06/06/2018,130050,2.50,Revenue,Chorley BC Petty Cash,16301
Chorley Borough Council,http://statistics.data.gov.uk/id/local-authority/30UE,Democratic Represent and  Mgnt,1007,Chief Executive,Use Of Transport - Mayoral Car,30015,Transport Recharges,5017,car wash,06/06/2018,130050,6.00,Revenue,Chorley BC Petty Cash,16301
Chorley Borough Council,http://statistics.data.gov.uk/id/local-authority/30UE,Unapportionable Central OHeads,1009,Chief Executive,Tools & Equipment - Purchase,40003,"Equipment, Furniture & Materia",5023,supawarm,06/06/2018,130050,16.67,Revenue,Chorley BC Petty Cash,16301
Chorley Borough Council,http://statistics.data.gov.uk/id/local-authority/30UE,Democratic Represent and  Mgnt,1007,Chief Executive,Uniforms,40039,"Clothing, Uniforms and Laundry",5025,shirt,06/06/2018,130050,8.00,Revenue,Chorley BC Petty Cash,16301
Chorley Borough Council,http://statistics.data.gov.uk/id/local-authority/30UE,Central Support Services,1009,Chief Executive,Miscellaneous Expenses,40200,Miscellaneous Expenses,5034,cook,06/06/2018,130050,14.17,Revenue,Chorley BC Petty Cash,16301
Chorley Borough Council,http://statistics.data.gov.uk/id/local-authority/30UE,Central Support Services,1009,Chief Executive,Miscellaneous Expenses,40200,Miscellaneous Expenses,5034,cook,06/06/2018,130050,17.12,Revenue,Chorley BC Petty Cash,16301
Chorley Borough Council,http://statistics.data.gov.uk/id/local-authority/30UE,Unapportionable Central OHeads,1009,Chief Executive,Tools & Equipment - Purchase,40003,"Equipment, Furniture & Materia",5023,burshes,06/06/2018,130050,3.00,Revenue,Chorley BC Petty Cash,16301
Chorley Borough Council,http://statistics.data.gov.uk/id/local-authority/30UE,Unapportionable Central OHeads,1009,Chief Executive,Tools & Equipment - Purchase,40003,"Equipment, Furniture & Materia",5023,drain unblocker,06/06/2018,130050,1.67,Revenue,Chorley BC Petty Cash,16301
Chorley Borough Council,http://statistics.data.gov.uk/id/local-authority/30UE,Democratic Represent and  Mgnt,1007,Chief Executive,Use Of Transport - Mayoral Car,30015,Transport Recharges,5017,car wash,06/06/2018,130050,6.00,Revenue,Chorley BC Petty Cash,16301
Chorley Borough Council,http://statistics.data.gov.uk/id/local-authority/30UE,Democratic Represent and  Mgnt,1007,Chief Executive,Use Of Transport - Mayoral Car,30015,Transport Recharges,5017,car wash,06/06/2018,130050,6.00,Revenue,Chorley BC Petty Cash,16301
Chorley Borough Council,http://statistics.data.gov.uk/id/local-authority/30UE,Unapportionable Central OHeads,1009,Chief Executive,Refreshments,40036,Catering,5024,milk,06/06/2018,130050,2.98,Revenue,Chorley BC Petty Cash,16301
Chorley Borough Council,http://statistics.data.gov.uk/id/local-authority/30UE,Unapportionable Central OHeads,1009,Chief Executive,Miscellaneous Expenses,40200,Miscellaneous Expenses,5034,domain name,06/06/2018,130050,3.99,Revenue,Chorley BC Petty Cash,16301
Chorley Borough Council,http://statistics.data.gov.uk/id/local-authority/30UE,Central Support Services,1009,Chief Executive,Miscellaneous Expenses,40200,Miscellaneous Expenses,5034,materials,06/06/2018,130050,8.58,Revenue,Chorley BC Petty Cash,16301
Chorley Borough Council,http://statistics.data.gov.uk/id/local-authority/30UE,Central Support Services,1009,Chief Executive,Miscellaneous Expenses,40200,Miscellaneous Expenses,5034,cook,06/06/2018,130050,19.81,Revenue,Chorley BC Petty Cash,16301
Chorley Borough Council,http://statistics.data.gov.uk/id/local-authority/30UE,Central Support Services,1009,Chief Executive,Miscellaneous Expenses,40200,Miscellaneous Expenses,5034,cook,06/06/2018,130050,16.31,Revenue,Chorley BC Petty Cash,16301
Chorley Borough Council,http://statistics.data.gov.uk/id/local-authority/30UE,Democratic Represent and  Mgnt,1007,Chief Executive,Use Of Transport - Mayoral Car,30015,Transport Recharges,5017,car wash,06/06/2018,130050,6.00,Revenue,Chorley BC Petty Cash,16301
Chorley Borough Council,http://statistics.data.gov.uk/id/local-authority/30UE,Democratic Represent and  Mgnt,1007,Chief Executive,Miscellaneous Expenses,40200,Miscellaneous Expenses,5034,herbs,06/06/2018,130050,2.00,Revenue,Chorley BC Petty Cash,16301
Chorley Borough Council,http://statistics.data.gov.uk/id/local-authority/30UE,Democratic Represent and  Mgnt,1007,Chief Executive,Miscellaneous Expenses,40200,Miscellaneous Expenses,5034,keys,06/06/2018,130050,8.33,Revenue,Chorley BC Petty Cash,16301
Chorley Borough Council,http://statistics.data.gov.uk/id/local-authority/30UE,Democratic Represent and  Mgnt,1007,Chief Executive,Cleaning Materials,40019,"Equipment, Furniture & Materia",5023,buds,06/06/2018,130050,1.48,Revenue,Chorley BC Petty Cash,16301
Chorley Borough Council,http://statistics.data.gov.uk/id/local-authority/30UE,Unapportionable Central OHeads,1009,Chief Executive,Other Fees,40212,Miscellaneous Expenses,5034,taxi,06/06/2018,130050,7.60,Revenue,Chorley BC Petty Cash,16301
Chorley Borough Council,http://statistics.data.gov.uk/id/local-authority/30UE,Democratic Represent and  Mgnt,1007,Chief Executive,Tools & Equipment - Purchase,40003,"Equipment, Furniture & Materia",5023,raffle tickets,06/06/2018,130050,2.60,Revenue,Chorley BC Petty Cash,16301
Chorley Borough Council,http://statistics.data.gov.uk/id/local-authority/30UE,Central Support Services,1009,Chief Executive,Miscellaneous Expenses,40200,Miscellaneous Expenses,5034,materials,06/06/2018,130050,18.66,Revenue,Chorley BC Petty Cash,16301
Chorley Borough Council,http://statistics.data.gov.uk/id/local-authority/30UE,Central Support Services,1009,Chief Executive,Miscellaneous Expenses,40200,Miscellaneous Expenses,5034,materials,06/06/2018,130050,5.75,Revenue,Chorley BC Petty Cash,16301
Chorley Borough Council,http://statistics.data.gov.uk/id/local-authority/30UE,Democratic Represent and  Mgnt,1007,Chief Executive,Tools & Equipment - Purchase,40003,"Equipment, Furniture & Materia",5023,batteries,06/06/2018,130050,6.67,Revenue,Chorley BC Petty Cash,16301
Chorley Borough Council,http://statistics.data.gov.uk/id/local-authority/30UE,Unapportionable Central OHeads,1009,Chief Executive,Uniforms,40039,"Clothing, Uniforms and Laundry",5025,shirts,06/06/2018,130050,11.67,Revenue,Chorley BC Petty Cash,16301
Chorley Borough Council,http://statistics.data.gov.uk/id/local-authority/30UE,Central Support Services,1009,Chief Executive,Community Develop Initiatives,40185,Miscellaneous Expenses,5034,expenses,06/06/2018,130050,17.91,Revenue,Chorley BC Petty Cash,16301
Chorley Borough Council,http://statistics.data.gov.uk/id/local-authority/30UE,Unapportionable Central OHeads,1009,Chief Executive,Refreshments,40036,Catering,5024,milk,06/06/2018,130050,3.98,Revenue,Chorley BC Petty Cash,16301
Chorley Borough Council,http://statistics.data.gov.uk/id/local-authority/30UE,Parking Services,1066,Chief Executive,Miscellaneous Expenses,40200,Miscellaneous Expenses,5034,posatege,06/06/2018,130050,1.68,Revenue,Chorley BC Petty Cash,16301
Chorley Borough Council,http://statistics.data.gov.uk/id/local-authority/30UE,Unapportionable Central OHeads,1009,Policy & Governance,Internal Decorating,20008,Repairs Maintenance & Alts,5005,Bulbs for Town Hall as per quote 21692.,27/06/2018,130590,381.10,Revenue,Chorley Electrical Traders Ltd,16330
Chorley Borough Council,http://statistics.data.gov.uk/id/local-authority/30UE,Service Management & Support,1009,Customer & Digital,Vehicles and Plant Maintenance,30045,Direct Transport Costs,5016,Supply and fit new tyre(s) to PO15 VHD as per invoice 23932,13/06/2018,130191,254.00,Revenue,Chorley Tyres,53719
Chorley Borough Council,http://statistics.data.gov.uk/id/local-authority/30UE,Service Management & Support,1009,Business Development & Growth,Hire of Plant,40001,"Equipment, Furniture & Materia",5023,2 days Hire van and boom,27/06/2018,130482,"1,100.00",Revenue,City Illuminations Ltd,77388
Chorley Borough Council,http://statistics.data.gov.uk/id/local-authority/30UE,Homelessness,1075,Early Intervention,Computer Software-Maintenance,40107,Communication and Computing,5028,"1819 Licence, Support and Maintenance Schedule.  Period: 1 July 2018 to 30 June 2019 Hosting for Chorley Community Housing",15/06/2018,129852,"1,528.07",Revenue,Civica UK Limited,17463
Chorley Borough Council,http://statistics.data.gov.uk/id/local-authority/30UE,Homelessness,1075,Early Intervention,Computer Software-Maintenance,40107,Communication and Computing,5028,Support & Maintenance,15/06/2018,129852,"2,348.33",Revenue,Civica UK Limited,17463
Chorley Borough Council,http://statistics.data.gov.uk/id/local-authority/30UE,Homelessness,1075,Early Intervention,Computer Software-Maintenance,40107,Communication and Computing,5028,SSL security on test site for Chorley Community Housing,15/06/2018,129852,27.56,Revenue,Civica UK Limited,17463
Chorley Borough Council,http://statistics.data.gov.uk/id/local-authority/30UE,Homelessness,1075,Early Intervention,Computer Software-Maintenance,40107,Communication and Computing,5028,Enhanced disaster recovery service fee,15/06/2018,129852,698.99,Revenue,Civica UK Limited,17463
Chorley Borough Council,http://statistics.data.gov.uk/id/local-authority/30UE,Homelessness,1075,Early Intervention,Computer Software-Maintenance,40107,Communication and Computing,5028,Hosting of mobile website,15/06/2018,129852,54.02,Revenue,Civica UK Limited,17463
Chorley Borough Council,http://statistics.data.gov.uk/id/local-authority/30UE,Homelessness,1075,Early Intervention,Computer Software-Maintenance,40107,Communication and Computing,5028,Support & Maintenance of mobile website,15/06/2018,129852,54.02,Revenue,Civica UK Limited,17463
Chorley Borough Council,http://statistics.data.gov.uk/id/local-authority/30UE,Homelessness,1075,Early Intervention,Computer Software-Maintenance,40107,Communication and Computing,5028,"2018 - 2019 Licence, Support and Maintenance Schedule. Period: 1 July 2018 to 30 June 2019 Hosting for Places for People",15/06/2018,129883,"1,528.07",Revenue,Civica UK Limited,17463
Chorley Borough Council,http://statistics.data.gov.uk/id/local-authority/30UE,Homelessness,1075,Early Intervention,Computer Software-Maintenance,40107,Communication and Computing,5028,Support & Maintenance,15/06/2018,129883,"2,348.33",Revenue,Civica UK Limited,17463
Chorley Borough Council,http://statistics.data.gov.uk/id/local-authority/30UE,Homelessness,1075,Early Intervention,Computer Software-Maintenance,40107,Communication and Computing,5028,SSL security on test site for Places for People,15/06/2018,129883,27.56,Revenue,Civica UK Limited,17463
Chorley Borough Council,http://statistics.data.gov.uk/id/local-authority/30UE,Homelessness,1075,Early Intervention,Computer Software-Maintenance,40107,Communication and Computing,5028,Enhanced disaster recovery service fee,15/06/2018,129883,698.99,Revenue,Civica UK Limited,17463
Chorley Borough Council,http://statistics.data.gov.uk/id/local-authority/30UE,Homelessness,1075,Early Intervention,Computer Software-Maintenance,40107,Communication and Computing,5028,Hosting of mobile website,15/06/2018,129883,54.02,Revenue,Civica UK Limited,17463
Chorley Borough Council,http://statistics.data.gov.uk/id/local-authority/30UE,Homelessness,1075,Early Intervention,Computer Software-Maintenance,40107,Communication and Computing,5028,Support & Maintenance of mobile website,15/06/2018,129883,54.02,Revenue,Civica UK Limited,17463
Chorley Borough Council,http://statistics.data.gov.uk/id/local-authority/30UE,Homelessness,1075,Early Intervention,Computer Software-Maintenance,40107,Communication and Computing,5028,"Licence, Support and Maintenance for the period: 01/01/2018 to 31/03/2018 - Additional charge for exceeding data storage",13/06/2018,130181,270.36,Revenue,Civica UK Limited,17463
Chorley Borough Council,http://statistics.data.gov.uk/id/local-authority/30UE,Corporate Management,1008,Policy & Governance,Other Contributions,40145,Grants and Subscriptions,5031,grant,29/06/2018,130629,"30,000.00",Revenue,Coppull Primary School-Friends of the School,76182
Chorley Borough Council,http://statistics.data.gov.uk/id/local-authority/30UE,Unapportionable Central OHeads,1009,Business Development & Growth,General Repairs - Reactive,20004,Repairs Maintenance & Alts,5005,Blanket Order for reactive repairs WEF 1/4/17,06/06/2018,129809,627.48,Revenue,Corlett Electrical Eng Co Ltd,16271
Chorley Borough Council,http://statistics.data.gov.uk/id/local-authority/30UE,Capital,Capital,Business Development & Growth,Main Contractor,3007,Capital Expenditure,Capital,Server room  trays and cable tidies,06/06/2018,129827,437.23,Capital,Corlett Electrical Eng Co Ltd,16271
Chorley Borough Council,http://statistics.data.gov.uk/id/local-authority/30UE,Unapportionable Central OHeads,1009,Business Development & Growth,Planned Maintenance,20006,Repairs Maintenance & Alts,5005,Blanket PPM order from August 2017,06/06/2018,129836,445.17,Revenue,Corlett Electrical Eng Co Ltd,16271
Chorley Borough Council,http://statistics.data.gov.uk/id/local-authority/30UE,Unapportionable Central OHeads,1009,Business Development & Growth,Asset Maintenance Fund,20012,Repairs Maintenance & Alts,5005,works in the policy and comms room,06/06/2018,129915,"3,494.00",Revenue,Corlett Electrical Eng Co Ltd,16271
Chorley Borough Council,http://statistics.data.gov.uk/id/local-authority/30UE,Democratic Represent and  Mgnt,1007,Business Development & Growth,Burglar Alarms & Security Systems,20075,Fixtures and Fittings,5010,"initial call out to inspect new mayor`s alarm system. Works to be completed -replace control panel, keypad, battery and new",27/06/2018,130411,740.00,Revenue,Corlett Electrical Eng Co Ltd,16271
Chorley Borough Council,http://statistics.data.gov.uk/id/local-authority/30UE,Unapportionable Central OHeads,1009,Business Development & Growth,Planned Maintenance,20006,Repairs Maintenance & Alts,5005,blanket order for PPM jobs,27/06/2018,130412,352.31,Revenue,Corlett Electrical Eng Co Ltd,16271
Chorley Borough Council,http://statistics.data.gov.uk/id/local-authority/30UE,Unapportionable Central OHeads,1009,Business Development & Growth,Planned Maintenance,20006,Repairs Maintenance & Alts,5005,blanket order for PPM jobs,27/06/2018,130422,358.80,Revenue,Corlett Electrical Eng Co Ltd,16271
Chorley Borough Council,http://statistics.data.gov.uk/id/local-authority/30UE,Unapportionable Central OHeads,1009,Business Development & Growth,Planned Maintenance,20006,Repairs Maintenance & Alts,5005,blanket order for PPM jobs,27/06/2018,130423,"1,307.00",Revenue,Corlett Electrical Eng Co Ltd,16271
Chorley Borough Council,http://statistics.data.gov.uk/id/local-authority/30UE,Unapportionable Central OHeads,1009,Business Development & Growth,Planned Maintenance,20006,Repairs Maintenance & Alts,5005,blanket order for PPM jobs,27/06/2018,130488,811.63,Revenue,Corlett Electrical Eng Co Ltd,16271
Chorley Borough Council,http://statistics.data.gov.uk/id/local-authority/30UE,Service Management & Support,1009,Customer & Digital,Grounds Maintenance Contractor,20043,Grounds Maintenance Costs,5013,"Fell and remove trees. Muslim Section, Chorley Cemetery",27/06/2018,130480,"2,500.00",Revenue,Cornthwaite Tree Care,21250
Chorley Borough Council,http://statistics.data.gov.uk/id/local-authority/30UE,Recreation & Sport,1037,Business Development & Growth,Gas,20014,Energy Costs,5006,Oct - 17 to Nov - 17,06/06/2018,129971,912.71,Revenue,Corona Energy Retail 2 Ltd,67249
Chorley Borough Council,http://statistics.data.gov.uk/id/local-authority/30UE,Unapportionable Central OHeads,1009,Business Development & Growth,Gas,20014,Energy Costs,5006,apr18-may18,08/06/2018,130151,442.42,Revenue,Corona Energy Retail 2 Ltd,67249
Chorley Borough Council,http://statistics.data.gov.uk/id/local-authority/30UE,Unapportionable Central OHeads,1009,Business Development & Growth,Gas,20014,Energy Costs,5006,apr18-may18,08/06/2018,130153,567.90,Revenue,Corona Energy Retail 2 Ltd,67249
Chorley Borough Council,http://statistics.data.gov.uk/id/local-authority/30UE,Democratic Represent and  Mgnt,1007,Business Development & Growth,Gas,20014,Energy Costs,5006,Jan18 to Feb18,08/06/2018,130154,306.04,Revenue,Corona Energy Retail 2 Ltd,67249
Chorley Borough Council,http://statistics.data.gov.uk/id/local-authority/30UE,Democratic Represent and  Mgnt,1007,Business Development & Growth,Gas,20014,Energy Costs,5006,Feb18-Mar18,08/06/2018,130155,306.27,Revenue,Corona Energy Retail 2 Ltd,67249
Chorley Borough Council,http://statistics.data.gov.uk/id/local-authority/30UE,Democratic Represent and  Mgnt,1007,Business Development & Growth,Gas,20014,Energy Costs,5006,mar18 to apr18,08/06/2018,130156,309.69,Revenue,Corona Energy Retail 2 Ltd,67249
Chorley Borough Council,http://statistics.data.gov.uk/id/local-authority/30UE,Democratic Represent and  Mgnt,1007,Business Development & Growth,Gas,20014,Energy Costs,5006,Apr18 to May18,08/06/2018,130157,288.89,Revenue,Corona Energy Retail 2 Ltd,67249
Chorley Borough Council,http://statistics.data.gov.uk/id/local-authority/30UE,Democratic Represent and  Mgnt,1007,Business Development & Growth,Gas,20014,Energy Costs,5006,Apr18 to May18,08/06/2018,130160,309.22,Revenue,Corona Energy Retail 2 Ltd,67249
Chorley Borough Council,http://statistics.data.gov.uk/id/local-authority/30UE,Homelessness,1075,Business Development & Growth,Gas,20014,Energy Costs,5006,Apr18 to May18,08/06/2018,130170,"1,112.22",Revenue,Corona Energy Retail 2 Ltd,67249
Chorley Borough Council,http://statistics.data.gov.uk/id/local-authority/30UE,Recreation & Sport,1037,Business Development & Growth,Gas,20014,Energy Costs,5006,Apr18 to May18,08/06/2018,130172,335.23,Revenue,Corona Energy Retail 2 Ltd,67249
Chorley Borough Council,http://statistics.data.gov.uk/id/local-authority/30UE,Recreation & Sport,1037,Business Development & Growth,Gas,20014,Energy Costs,5006,buttermere Jun 17 to Jul 17,15/06/2018,130321,550.27,Revenue,Corona Energy Retail 2 Ltd,67249
Chorley Borough Council,http://statistics.data.gov.uk/id/local-authority/30UE,Recreation & Sport,1037,Business Development & Growth,Gas,20014,Energy Costs,5006,Jul 17 to Aug 17,15/06/2018,130335,533.85,Revenue,Corona Energy Retail 2 Ltd,67249
Chorley Borough Council,http://statistics.data.gov.uk/id/local-authority/30UE,Unapportionable Central OHeads,1009,Business Development & Growth,Gas,20014,Energy Costs,5006,jan 18 to Feb18,27/06/2018,130534,273.94,Revenue,Corona Energy Retail 2 Ltd,67249
Chorley Borough Council,http://statistics.data.gov.uk/id/local-authority/30UE,Unapportionable Central OHeads,1009,Business Development & Growth,Gas,20014,Energy Costs,5006,Feb18 to Mar 18,27/06/2018,130535,499.23,Revenue,Corona Energy Retail 2 Ltd,67249
Chorley Borough Council,http://statistics.data.gov.uk/id/local-authority/30UE,Recreation & Sport,1037,Business Development & Growth,Gas,20014,Energy Costs,5006,May 18 to Jun18,27/06/2018,130536,313.56,Revenue,Corona Energy Retail 2 Ltd,67249
Chorley Borough Council,http://statistics.data.gov.uk/id/local-authority/30UE,Unapportionable Central OHeads,1009,Business Development & Growth,Gas,20014,Energy Costs,5006,Mar18 to Apr18,27/06/2018,130538,491.73,Revenue,Corona Energy Retail 2 Ltd,67249
Chorley Borough Council,http://statistics.data.gov.uk/id/local-authority/30UE,Unapportionable Central OHeads,1009,Business Development & Growth,Gas,20014,Energy Costs,5006,Apr18 to May18,27/06/2018,130539,437.58,Revenue,Corona Energy Retail 2 Ltd,67249
Chorley Borough Council,http://statistics.data.gov.uk/id/local-authority/30UE,Unapportionable Central OHeads,1009,Business Development & Growth,Gas,20014,Energy Costs,5006,May 18 to Jun1,27/06/2018,130540,"4,612.19",Revenue,Corona Energy Retail 2 Ltd,67249
Chorley Borough Council,http://statistics.data.gov.uk/id/local-authority/30UE,Unapportionable Central OHeads,1009,Business Development & Growth,Gas,20014,Energy Costs,5006,may18 to jun18,27/06/2018,130541,443.17,Revenue,Corona Energy Retail 2 Ltd,67249
Chorley Borough Council,http://statistics.data.gov.uk/id/local-authority/30UE,Democratic Represent and  Mgnt,1007,Business Development & Growth,Gas,20014,Energy Costs,5006,May18 to Jun18,27/06/2018,130544,300.02,Revenue,Corona Energy Retail 2 Ltd,67249
Chorley Borough Council,http://statistics.data.gov.uk/id/local-authority/30UE,Homelessness,1075,Business Development & Growth,Gas,20014,Energy Costs,5006,May18 to Jun18,27/06/2018,130549,"1,017.21",Revenue,Corona Energy Retail 2 Ltd,67249
Chorley Borough Council,http://statistics.data.gov.uk/id/local-authority/30UE,Unapportionable Central OHeads,1009,Policy & Governance,Search Fees,40068,Services,5027,Creditsafe standard package - 12 months access,29/06/2018,130650,"1,600.00",Revenue,Creditsafe Business Solutions Limited,77447
Chorley Borough Council,http://statistics.data.gov.uk/id/local-authority/30UE,Unapportionable Central OHeads,1009,Customer & Digital,Publications,40054,"Printing, Stationery & General",5026,CCH VAT Standard  po raised on old ac14856 in error - transfer of bus from wolters Kluwer in July last yr to Croner-i as per letter,15/06/2018,130338,456.19,Revenue,Croner - I Limited,77418
Chorley Borough Council,http://statistics.data.gov.uk/id/local-authority/30UE,Capital,Capital,Business Development & Growth,Architects Fees,3022,Capital Expenditure,Capital,,06/06/2018,130051,"2,800.00",Capital,Curtins Consulting Engineers,20049
Chorley Borough Council,http://statistics.data.gov.uk/id/local-authority/30UE,Business Support,1095,Business Development & Growth,Miscellaneous Expenses,40200,Miscellaneous Expenses,5034,Completion of surface water drainage design works,27/06/2018,130479,"4,875.00",Revenue,Curtins Consulting Engineers,20049
Chorley Borough Council,http://statistics.data.gov.uk/id/local-authority/30UE,Other Short Term Debtors,,Policy & Governance,Other Debtors,98,Balance Sheet,Balance,Cycle scheme for ZW,15/06/2018,130323,833.33,Revenue,Cyclescheme Ltd,22390
Chorley Borough Council,http://statistics.data.gov.uk/id/local-authority/30UE,Central Support Services,1009,Customer & Digital,Computer Equipment-Purchase,40098,Communication and Computing,5028,Apple 12w USB PSU for all iPads - 14.50 each * 20 Apple Lightning to USB Cable 1m - 14.50 each  * 20,15/06/2018,130052,592.00,Revenue,DAC Technology Ltd,76398
Chorley Borough Council,http://statistics.data.gov.uk/id/local-authority/30UE,Central Support Services,1009,Customer & Digital,Telephones - Other,40085,Communication and Computing,5028,"2 iPhone 7 256GB unlocked (jet black) refurbished - @ 495.00 + VAT FOC Delivery.",20/06/2018,130054,"1,002.00",Revenue,DAC Technology Ltd,76398
Chorley Borough Council,http://statistics.data.gov.uk/id/local-authority/30UE,Unapportionable Central OHeads,1009,Business Development & Growth,General Repairs - Reactive,20004,Repairs Maintenance & Alts,5005,Chorley market breakdown and flushvalves,06/06/2018,129885,337.39,Revenue,Dart Valley Systems Ltd,68805
Chorley Borough Council,http://statistics.data.gov.uk/id/local-authority/30UE,Democratic Represent and  Mgnt,1007,Business Development & Growth,Other Fees,40212,Miscellaneous Expenses,5034,bond repayment,27/06/2018,130489,500.00,Revenue,Derian House Childrens` Hospice,18881
Chorley Borough Council,http://statistics.data.gov.uk/id/local-authority/30UE,Unapportionable Central OHeads,1009,Policy & Governance,HR Recruitment - Advertising,15300,Indirect Employee Expenses,5002,Recruitment campaign for IT roles,20/06/2018,130355,"1,077.30",Revenue,DG Partnership LTD (Ecruit),77425
Chorley Borough Council,http://statistics.data.gov.uk/id/local-authority/30UE,Corporate Management,1008,Customer & Digital,Furniture - Purchase,40012,"Equipment, Furniture & Materia",5023,CFT16 Conference Table 1600 X 800 X 730 Maple MFC. x 1 @ 187.59 - sample already on site A900.C1 Fully Upholstered Multi,15/06/2018,130119,538.43,Revenue,Diamond Business Interiors Ltd,53722
Chorley Borough Council,http://statistics.data.gov.uk/id/local-authority/30UE,Central Support Services,1009,Early Intervention,Refunds,40220,Miscellaneous Expenses,5034,lic fees enviro serv,20/06/2018,130371,440.50,Revenue,Drupad Trivedi,77422
Chorley Borough Council,http://statistics.data.gov.uk/id/local-authority/30UE,Unapportionable Central OHeads,1009,Policy & Governance,General Subscriptions,40146,Grants and Subscriptions,5031,Annual Hosting for the Chest - Pro Contract covering the period 1st August 2018 to 31st July 2019.  Contract Ref 774 ,27/06/2018,130592,"4,280.00",Revenue,Due North LTD,22498
Chorley Borough Council,http://statistics.data.gov.uk/id/local-authority/30UE,Business Support,1095,Business Development & Growth,Electricity,20013,Energy Costs,5006,16/5/18 to 12/6/18,27/06/2018,130395,"1,710.20",Revenue,E.On,21330
Chorley Borough Council,http://statistics.data.gov.uk/id/local-authority/30UE,Central Support Services,1009,Customer & Digital,Mobile Voice and Data,40086,Communication and Computing,5028,Jun-18,13/06/2018,130237,"1,802.60",Revenue,EE - Orange,16486
Chorley Borough Council,http://statistics.data.gov.uk/id/local-authority/30UE,Central Support Services,1009,Customer & Digital,Mobile Voice and Data,40086,Communication and Computing,5028,exempt,13/06/2018,130237,25.92,Revenue,EE - Orange,16486
Chorley Borough Council,http://statistics.data.gov.uk/id/local-authority/30UE,Central Support Services,1009,Customer & Digital,Mobile Voice and Data,40086,Communication and Computing,5028,03-Jun-18,15/06/2018,130300,648.66,Revenue,EE - Orange,16486
Chorley Borough Council,http://statistics.data.gov.uk/id/local-authority/30UE,Central Support Services,1009,Customer & Digital,Mobile Voice and Data,40086,Communication and Computing,5028,3 june 018,15/06/2018,130301,"1,540.89",Revenue,EE - Orange,16486
Chorley Borough Council,http://statistics.data.gov.uk/id/local-authority/30UE,Unapportionable Central OHeads,1009,Business Development & Growth,General Repairs - Reactive,20004,Repairs Maintenance & Alts,5005,Reactive works as of Feb 2018,06/06/2018,129921,523.05,Revenue,Ellesmere Engineering Co Ltd,17520
Chorley Borough Council,http://statistics.data.gov.uk/id/local-authority/30UE,Unapportionable Central OHeads,1009,Business Development & Growth,Planned Maintenance,20006,Repairs Maintenance & Alts,5005,Replacement 2 x 5kw units Bengal St Depot - Server Room  Installation and decommission as per quote dated 9th May 2018,15/06/2018,130013,"5,760.00",Revenue,Ellesmere Engineering Co Ltd,17520
Chorley Borough Council,http://statistics.data.gov.uk/id/local-authority/30UE,Capital,Capital,Business Development & Growth,Main Contractor,3007,Capital Expenditure,Capital,Union St Server Room plumbing works,15/06/2018,130125,"1,210.00",Capital,Ellesmere Engineering Co Ltd,17520
Chorley Borough Council,http://statistics.data.gov.uk/id/local-authority/30UE,Capital,Capital,Business Development & Growth,Main Contractor,3007,Capital Expenditure,Capital,"Oak House � Demolition, asbestos removal, lighting & creation of a surface car park as detailed in EWC cost plan",27/06/2018,130339,"63,986.34",Capital,Eric Wright Construction Ltd,76464
Chorley Borough Council,http://statistics.data.gov.uk/id/local-authority/30UE,Capital,Capital,Business Development & Growth,Main Contractor,3007,Capital Expenditure,Capital,"Friday Street � Resurfacing, drainage improvements & erection of a decked car park as detailed in EWC cost plan",27/06/2018,130340,"42,545.28",Capital,Eric Wright Construction Ltd,76464
Chorley Borough Council,http://statistics.data.gov.uk/id/local-authority/30UE,Capital,Capital,Business Development & Growth,Main Contractor,3007,Capital Expenditure,Capital,Deliver Arley Street car park as per approved planning consent in drawing B9472-AEW-SI-00-DR-A-502 Rev P4 Proposed Site Plan,27/06/2018,130341,"58,202.16",Capital,Eric Wright Construction Ltd,76464
Chorley Borough Council,http://statistics.data.gov.uk/id/local-authority/30UE,Capital,Capital,Business Development & Growth,Main Contractor,3007,Capital Expenditure,Capital,Market Walk Chorley additional PCSA (Pre Construction Service Agreement works following on from PRD048086 & PRD050459,27/06/2018,130506,"5,931.56",Capital,Eric Wright Construction Ltd,76464
Chorley Borough Council,http://statistics.data.gov.uk/id/local-authority/30UE,Central Support Services,1009,Customer & Digital,IT Software - Annual Licences,40101,Communication and Computing,5028,"Small Local Government Enterpise License Agreement Tier 2- Fixed price three year agreement at 21,000 per year.",22/06/2018,129350,"22,300.00",Revenue,ESRI (UK) Ltd,19692
Chorley Borough Council,http://statistics.data.gov.uk/id/local-authority/30UE,Corporate Management,1008,Customer & Digital,Printing,40043,"Printing, Stationery & General",5026,"Garden waste permits 2018-19: Garden waste stickers, letters, envelopes, picking-and-packing and mailing - and customer cloud",15/06/2018,130055,"7,916.30",Revenue,Euro Labels Printers Ltd,77202
Chorley Borough Council,http://statistics.data.gov.uk/id/local-authority/30UE,Unapportionable Central OHeads,1009,Policy & Governance,Training Course Fees,17010,Indirect Employee Expenses,5002,Supply of Rescue training equipment for training,13/06/2018,130288,633.45,Revenue,Eurosafe Solutions Limited,66302
Chorley Borough Council,http://statistics.data.gov.uk/id/local-authority/30UE,Democratic Represent and  Mgnt,1007,Business Development & Growth,Maintenance/Nature Reserves,20045,Grounds Maintenance Costs,5013,"1 x Betula Nigra  		12/14cm 	582 x Alnus glutinosa		12/14cm 	38.00 2 x Populus tremula	12/14cm   58.00",06/06/2018,130107,250.00,Revenue,Everglades Nurseries Ltd,20202
Chorley Borough Council,http://statistics.data.gov.uk/id/local-authority/30UE,Service Management & Support,1009,Customer & Digital,Supplies-Grounds Maintenance,40025,"Equipment, Furniture & Materia",5023,"10	Nepeta faasseni c10	Peony lactiflora c2 18	Phlox paniculate c2 5	Rosa anna ford c2 15	Verbene bonariensis c2 2	Buddle",20/06/2018,130378,296.60,Revenue,Everglades Nurseries Ltd,20202
Chorley Borough Council,http://statistics.data.gov.uk/id/local-authority/30UE,Democratic Represent and  Mgnt,1007,Customer & Digital,Supplies-Grounds Maintenance,40025,"Equipment, Furniture & Materia",5023,"38	Verbena �Bonariensis��	c2	3.95	 23	Monarda �Gardenview Scarlet�	c2	2.95	 19	Peony �Lactiflora��	c2	2.75	 23	Eremurus Foxtail Lily�	c5	10	",29/06/2018,130634,"2,314.00",Revenue,Everglades Nurseries Ltd,20202
Chorley Borough Council,http://statistics.data.gov.uk/id/local-authority/30UE,Tourism,1039,Policy & Governance,Publicity - Advertising,40157,Miscellaneous Expenses,5034,Chorley flower show advertising,20/06/2018,130056,"2,950.00",Revenue,Exterion Media,77296
Chorley Borough Council,http://statistics.data.gov.uk/id/local-authority/30UE,Service Management & Support,1009,Customer & Digital,Supplies - Workshop,40246,"Equipment, Furniture & Materia",5023,as per Pro- Forma No. 128536; various parts for grounds maintenance equipment,06/06/2018,129956,404.32,Revenue,F R Sharrock Ltd,18091
Chorley Borough Council,http://statistics.data.gov.uk/id/local-authority/30UE,Tourism,1039,Policy & Governance,Furniture - Hire,40013,"Equipment, Furniture & Materia",5023,Flower Show Marquees,06/06/2018,130130,"31,074.58",Revenue,Field and Lawn Ltd,74977
Chorley Borough Council,http://statistics.data.gov.uk/id/local-authority/30UE,Private Sector HSG Renewal,1073,Early Intervention,Miscellaneous Expenses,40200,Miscellaneous Expenses,5034,ADDRESS REDACTED,20/06/2018,130357,"1,420.00",Revenue,Firefly Energi Ltd,69925
Chorley Borough Council,http://statistics.data.gov.uk/id/local-authority/30UE,Private Sector HSG Renewal,1073,Early Intervention,Miscellaneous Expenses,40200,Miscellaneous Expenses,5034,ADDRESS REDACTED,20/06/2018,130358,993.00,Revenue,Firefly Energi Ltd,69925
Chorley Borough Council,http://statistics.data.gov.uk/id/local-authority/30UE,Private Sector HSG Renewal,1073,Early Intervention,Miscellaneous Expenses,40200,Miscellaneous Expenses,5034,ADDRESS REDACTED,20/06/2018,130396,"1,232.00",Revenue,Firefly Energi Ltd,69925
Chorley Borough Council,http://statistics.data.gov.uk/id/local-authority/30UE,Unapportionable Central OHeads,1009,Policy & Governance,Legal Fees,40171,Miscellaneous Expenses,5034,Invoice No 500483 - Professional fees from 28/04/18 to 25/05/18 ,13/06/2018,130272,442.00,Revenue,Forbes Solicitors,17527
Chorley Borough Council,http://statistics.data.gov.uk/id/local-authority/30UE,Service Management & Support,1009,Business Development & Growth,Grounds Maintenance Contractor,20043,Grounds Maintenance Costs,5013,Door in the tree at Astley Park,06/06/2018,129987,650.00,Revenue,Frank Dalton,77361
Chorley Borough Council,http://statistics.data.gov.uk/id/local-authority/30UE,Homelessness,1075,Early Intervention,Furniture - Purchase,40012,"Equipment, Furniture & Materia",5023,York Double Wardrobe - Beech,06/06/2018,128760,433.08,Revenue,Furniture Resource Centre Ltd,22085
Chorley Borough Council,http://statistics.data.gov.uk/id/local-authority/30UE,Homelessness,1075,Early Intervention,Furniture - Purchase,40012,"Equipment, Furniture & Materia",5023,"York 3 Drawer Chest, Large - Beech",06/06/2018,128760,136.84,Revenue,Furniture Resource Centre Ltd,22085
Chorley Borough Council,http://statistics.data.gov.uk/id/local-authority/30UE,Democratic Represent and  Mgnt,1007,Customer & Digital,Playground Equipment,40008,"Equipment, Furniture & Materia",5023,1 - tensioning rope with fastner and anchor irons for pendulum swings - Destination Play Area,15/06/2018,130280,660.00,Revenue,GB Sport & Leisure,21305
Chorley Borough Council,http://statistics.data.gov.uk/id/local-authority/30UE,Capital,Capital,Business Development & Growth,Consultants Fees,3025,Capital Expenditure,Capital,Design of changing facility and car parking up to RIBA stage 4,15/06/2018,129662,"9,826.00",Capital,Gleeds Management Services Ltd,77165
Chorley Borough Council,http://statistics.data.gov.uk/id/local-authority/30UE,Central Support Services,1009,Policy & Governance,Miscellaneous Expenses,40200,Miscellaneous Expenses,5034,Delivering Digital Transformation 28/06/2018 UMG Delegate NAME REDACTED,13/06/2018,130139,395.00,Revenue,GovNet Communications,18230
Chorley Borough Council,http://statistics.data.gov.uk/id/local-authority/30UE,Corporate Management,1008,Policy & Governance,External Audit,40064,Services,5027,2017/18 Main External Audit Fee,22/06/2018,130375,"11,314.00",Revenue,Grant Thornton UK LLP,57322
Chorley Borough Council,http://statistics.data.gov.uk/id/local-authority/30UE,Service Management & Support,1009,Customer & Digital,Supplies-Grounds Maintenance,40025,"Equipment, Furniture & Materia",5023,F14 McConnell Flail,13/06/2018,130140,300.00,Revenue,Halse South West Ltd,76890
Chorley Borough Council,http://statistics.data.gov.uk/id/local-authority/30UE,Service Management & Support,1009,Customer & Digital,Supplies-Grounds Maintenance,40025,"Equipment, Furniture & Materia",5023,Carriage to; Chorley Council Depot Bengal St Chorley PR7 1SA,13/06/2018,130140,20.00,Revenue,Halse South West Ltd,76890
Chorley Borough Council,http://statistics.data.gov.uk/id/local-authority/30UE,Corporate Management,1008,Customer & Digital,Printing,40043,"Printing, Stationery & General",5026,"2000 bin tags, 2 pages, in colour, as per quote 129538",27/06/2018,130591,683.00,Revenue,Haslam PrintersLtd,21777
Chorley Borough Council,http://statistics.data.gov.uk/id/local-authority/30UE,Service Management & Support,1009,Customer & Digital,Supplies-Grounds Maintenance,40025,"Equipment, Furniture & Materia",5023,Two pallets of multi-purpose compost,15/06/2018,130318,340.00,Revenue,Henry Alty Limited,22048
Chorley Borough Council,http://statistics.data.gov.uk/id/local-authority/30UE,Central Support Services,1009,Business Development & Growth,Professional Fees,40063,Services,5027,Alker Lane project works,06/06/2018,129961,"3,321.00",Revenue,Hive Land & Planning Limited,77330
Chorley Borough Council,http://statistics.data.gov.uk/id/local-authority/30UE,Central Support Services,1009,Business Development & Growth,Professional Fees,40063,Services,5027,Shady Lane project works,06/06/2018,129962,"3,778.13",Revenue,Hive Land & Planning Limited,77330
Chorley Borough Council,http://statistics.data.gov.uk/id/local-authority/30UE,Central Support Services,1009,Business Development & Growth,Professional Fees,40063,Services,5027,Alker Lane project works,08/06/2018,130163,"4,860.00",Revenue,Hive Land & Planning Limited,77330
Chorley Borough Council,http://statistics.data.gov.uk/id/local-authority/30UE,Central Support Services,1009,Business Development & Growth,Professional Fees,40063,Services,5027,Shady Lane project works,08/06/2018,130164,446.88,Revenue,Hive Land & Planning Limited,77330
Chorley Borough Council,http://statistics.data.gov.uk/id/local-authority/30UE,Capital,Capital,Business Development & Growth,Architects Fees,3022,Capital Expenditure,Capital,"For provision of Architectural and Principal Designer Services for the Digital Office Park, Chorley in accordance with tender dated ",06/06/2018,130068,"3,127.00",Capital,Howarth Litchfield Partnership,76440
Chorley Borough Council,http://statistics.data.gov.uk/id/local-authority/30UE,Capital,Capital,Business Development & Growth,Architects Fees,3022,Capital Expenditure,Capital,"For provision of Architectural and Principal Designer Services for the Digital Office Park, Chorley in accordance with tender dated ",06/06/2018,130072,"3,127.00",Capital,Howarth Litchfield Partnership,76440
Chorley Borough Council,http://statistics.data.gov.uk/id/local-authority/30UE,Business Support,1095,Business Development & Growth,Miscellaneous Expenses,40200,Miscellaneous Expenses,5034,CDM - Enabling Works,06/06/2018,130086,"2,500.00",Revenue,Howarth Litchfield Partnership,76440
Chorley Borough Council,http://statistics.data.gov.uk/id/local-authority/30UE,Corporate Management,1008,Policy & Governance,Other Fees,40212,Miscellaneous Expenses,5034,"Subsidy for the interim provision of the meals on wheels service in Chorley, based on the current number of customers who have",08/06/2018,129713,"3,050.00",Revenue,I Care GB Ltd,77247
Chorley Borough Council,http://statistics.data.gov.uk/id/local-authority/30UE,Corporate Management,1008,Policy & Governance,Other Fees,40212,Miscellaneous Expenses,5034,,08/06/2018,129713,"-1,855.42",Revenue,I Care GB Ltd,77247
Chorley Borough Council,http://statistics.data.gov.uk/id/local-authority/30UE,Control Accounts,Control,Policy & Governance,Manual Control Account,1,Balance Sheet,Balance,,08/06/2018,129713,-371.08,Revenue,I Care GB Ltd,77247
Chorley Borough Council,http://statistics.data.gov.uk/id/local-authority/30UE,Corporate Management,1008,Policy & Governance,Other Fees,40212,Miscellaneous Expenses,5034,,29/06/2018,130530,"-1,745.92",Revenue,I Care GB Ltd,77247
Chorley Borough Council,http://statistics.data.gov.uk/id/local-authority/30UE,Corporate Management,1008,Policy & Governance,Other Fees,40212,Miscellaneous Expenses,5034,"Subsidy for the interim provision of the meals on wheels service in Chorley, based on the current number of customers who have",29/06/2018,130530,"2,870.00",Revenue,I Care GB Ltd,77247
Chorley Borough Council,http://statistics.data.gov.uk/id/local-authority/30UE,Control Accounts,Control,Policy & Governance,Manual Control Account,1,Balance Sheet,Balance,,29/06/2018,130530,-349.18,Revenue,I Care GB Ltd,77247
Chorley Borough Council,http://statistics.data.gov.uk/id/local-authority/30UE,Open Spaces,1038,Business Development & Growth,Professional Fees,40063,Services,5027,Project work for Westway Sports Campus,06/06/2018,129999,"1,660.00",Revenue,Identity Consult Ltd,76426
Chorley Borough Council,http://statistics.data.gov.uk/id/local-authority/30UE,Capital,Capital,Business Development & Growth,Consultants Fees,3025,Capital Expenditure,Capital,For provision of project management/employers agent services in accordance with tender dated 30.9.2016.,06/06/2018,130038,"2,075.00",Capital,Identity Consult Ltd,76426
Chorley Borough Council,http://statistics.data.gov.uk/id/local-authority/30UE,Capital,Capital,Business Development & Growth,Consultants Fees,3025,Capital Expenditure,Capital,For provision of project management/employers agent services in accordance with tender dated 30.9.2016.,06/06/2018,130047,"2,075.00",Capital,Identity Consult Ltd,76426
Chorley Borough Council,http://statistics.data.gov.uk/id/local-authority/30UE,Capital,Capital,Business Development & Growth,Consultants Fees,3025,Capital Expenditure,Capital,For provision of project management/employers agent services in accordance with tender dated 30.9.2016.,29/06/2018,130683,"2,075.00",Capital,Identity Consult Ltd,76426
Chorley Borough Council,http://statistics.data.gov.uk/id/local-authority/30UE,Central Support Services,1009,Customer & Digital,Computer Software-Additional,40102,Communication and Computing,5028,"Oracle 12 Upgrade to Live and Test package (Weekdays Mon-Fri) #Note �  �	CBC supply their own Oracle Licences ",20/06/2018,130031,"3,425.00",Revenue,IDOX Software Limited,17542
Chorley Borough Council,http://statistics.data.gov.uk/id/local-authority/30UE,Unapportionable Central OHeads,1009,Policy & Governance,Miscellaneous Expenses,40200,Miscellaneous Expenses,5034,Upgrade to Iken Cedar and implementation of the Iken data cleansing tool,06/06/2018,130120,389.15,Revenue,Iken Business Limited,22068
Chorley Borough Council,http://statistics.data.gov.uk/id/local-authority/30UE,Other Short Term Creditors,,Policy & Governance,General Balances,100,Balance Sheet,Balance,Income Tax,15/06/2018,130315,"10,766.80",Revenue,Inland Revenue 065/CH1094A,77147
Chorley Borough Council,http://statistics.data.gov.uk/id/local-authority/30UE,Community Development,1097,Chief Executive,Core Funding Grants,40133,Grants and Subscriptions,5031,contribution,06/06/2018,130132,"100,000.00",Revenue,Inspire Youth Zone,77339
Chorley Borough Council,http://statistics.data.gov.uk/id/local-authority/30UE,Private Sector HSG Renewal,1073,Early Intervention,External Contractor,40198,Miscellaneous Expenses,5034,ADDRESS REDACTED,27/06/2018,130348,"5,291.70",Revenue,Insulation-Consumer Action Network (I-CAN) Ltd,77297
Chorley Borough Council,http://statistics.data.gov.uk/id/local-authority/30UE,Business Support,1095,Business Development & Growth,Refuse Collection,20037,Cleaning and Domestic Supplies,5012,Waste Compactor Rental Services @ 270.0 per month for 01 April 2018 - 31 March 2019,06/06/2018,130032,270.00,Revenue,J&H Rentals Limited,70699
Chorley Borough Council,http://statistics.data.gov.uk/id/local-authority/30UE,Business Support,1095,Business Development & Growth,Refuse Collection,20037,Cleaning and Domestic Supplies,5012,Waste Compactor Rental Services @ 270.0 per month for 01 April 2018 - 31 March 2019,20/06/2018,130249,270.00,Revenue,J&H Rentals Limited,70699
Chorley Borough Council,http://statistics.data.gov.uk/id/local-authority/30UE,Service Management & Support,1009,Customer & Digital,Vehicles and Plant Operating Lease,30029,Contrct Hire & Operating Lease,5018,Lease rental of John Deere Tractor PJ63 VCW from 26th August 2018 to 25th August 2019,06/06/2018,130075,"2,795.36",Revenue,Jcb Finance Ltd,17684
Chorley Borough Council,http://statistics.data.gov.uk/id/local-authority/30UE,Service Management & Support,1009,Customer & Digital,Vehicles and Plant Operating Lease,30029,Contrct Hire & Operating Lease,5018,Lease rental of Kubota Tractor PO14 BFX from 26th August 2018 to 25th August 2019,06/06/2018,130075,"3,791.49",Revenue,Jcb Finance Ltd,17684
Chorley Borough Council,http://statistics.data.gov.uk/id/local-authority/30UE,Service Management & Support,1009,Customer & Digital,Vehicles and Plant Operating Lease,30029,Contrct Hire & Operating Lease,5018,Termination payment on PN14 VNA (Leased Vehicle stolen on 22/04/18),08/06/2018,130175,"6,940.97",Revenue,Jcb Finance Ltd,17684
Chorley Borough Council,http://statistics.data.gov.uk/id/local-authority/30UE,Service Management & Support,1009,Customer & Digital,Vehicles and Plant Operating Lease,30029,Contrct Hire & Operating Lease,5018,Lease of Wessex Tri-Deck Mower 26th August 18 to 25th August 19,27/06/2018,130299,"3,504.89",Revenue,Jcb Finance Ltd,17684
Chorley Borough Council,http://statistics.data.gov.uk/id/local-authority/30UE,Service Management & Support,1009,Customer & Digital,Vehicles and Plant Operating Lease,30029,Contrct Hire & Operating Lease,5018,Lease of Ransome Parkway Mower YX14 FCL 26th August 18 to 25th August 19,27/06/2018,130299,"4,254.38",Revenue,Jcb Finance Ltd,17684
Chorley Borough Council,http://statistics.data.gov.uk/id/local-authority/30UE,Service Management & Support,1009,Customer & Digital,Vehicles and Plant Operating Lease,30029,Contrct Hire & Operating Lease,5018,Lease of John Deere Mower PN14 VMZ 26th August 18 to 25th August 19,27/06/2018,130299,"3,038.84",Revenue,Jcb Finance Ltd,17684
Chorley Borough Council,http://statistics.data.gov.uk/id/local-authority/30UE,Service Management & Support,1009,Customer & Digital,Vehicles and Plant Operating Lease,30029,Contrct Hire & Operating Lease,5018,Lease of John Deere Mower PN14 VNF 26th August 18 to 25th August 19,27/06/2018,130299,"3,038.84",Revenue,Jcb Finance Ltd,17684
Chorley Borough Council,http://statistics.data.gov.uk/id/local-authority/30UE,Central Support Services,1009,Early Intervention,Miscellaneous Expenses,40200,Miscellaneous Expenses,5034,Attend six meetings of the DHR Panel; read and analyse all submissions; collate an integrated chronology of contacts and review,27/06/2018,130566,"3,550.00",Revenue,John Doyle Projects,66412
Chorley Borough Council,http://statistics.data.gov.uk/id/local-authority/30UE,Economic Development,1096,Business Development & Growth,Miscellaneous Expenses,40200,Miscellaneous Expenses,5034,For business start-up support for May 2018 - 7 days at 200 per day,13/06/2018,130250,"1,200.00",Revenue,NAME REDACTED,77195
Chorley Borough Council,http://statistics.data.gov.uk/id/local-authority/30UE,Development Control,1091,Customer & Digital,Statutory Notices,40160,Miscellaneous Expenses,5034,Planning Public Notices to appear in the Chorley Guardian April 2018 to March 2019,06/06/2018,130001,603.06,Revenue,Johnston Publishing Ltd,20072
Chorley Borough Council,http://statistics.data.gov.uk/id/local-authority/30UE,Service Management & Support,1009,Customer & Digital,Vehicles and Plant Maintenance,30045,Direct Transport Costs,5016,Please supply: Roof Mesh Assembly Part No: 7015647 at the price quoted of 374:20,27/06/2018,130390,748.52,Revenue,Johnston Sweepers Limited,20778
Chorley Borough Council,http://statistics.data.gov.uk/id/local-authority/30UE,Capital,Capital,Early Intervention,Grants,3002,Capital Expenditure,Capital,ADDRESS REDACTED,20/06/2018,130359,"3,942.50",Capital,K Berry Ltd,16421
Chorley Borough Council,http://statistics.data.gov.uk/id/local-authority/30UE,Business Support,1095,Business Development & Growth,Grants To Other Organisations,40127,Grants and Subscriptions,5031,GRANT,06/06/2018,129973,250.00,Revenue,NAME REDACTED,77342
Chorley Borough Council,http://statistics.data.gov.uk/id/local-authority/30UE,Corporate Management,1008,Customer & Digital,Other Contributions,40145,Grants and Subscriptions,5031,PLRG - ADDRESS REDACTED,27/06/2018,130583,"4,991.20",Revenue,NAME REDACTED,73754
Chorley Borough Council,http://statistics.data.gov.uk/id/local-authority/30UE,Control Accounts,Control,Policy & Governance,General Balances,100,Balance Sheet,Balance,monthly deds fr,27/06/2018,130574,"1,111.28",Revenue,Labour Councillors Association,17577
Chorley Borough Council,http://statistics.data.gov.uk/id/local-authority/30UE,Central Support Services,1009,Customer & Digital,Network Line Rental,40248,Communication and Computing,5028,Services to be provided by Lancashire County Council to Chorley Borough Council (Shared Network Link) for a 6 month term ,20/06/2018,128849,"2,363.73",Revenue,Lancashire County Council,17758
Chorley Borough Council,http://statistics.data.gov.uk/id/local-authority/30UE,Central Support Services,1009,Customer & Digital,IT Software - Annual Licences,40101,Communication and Computing,5028,Services to be provided by Lancashire County Council to Chorley Borough Council for a 6 month term from 1st April 2018 ,20/06/2018,128850,"7,873.11",Revenue,Lancashire County Council,17758
Chorley Borough Council,http://statistics.data.gov.uk/id/local-authority/30UE,Homelessness,1075,Early Intervention,Training Course Fees,17010,Indirect Employee Expenses,5002,LCC Designated Safeguarding Lead Training 7th December 2017,06/06/2018,130036,250.00,Revenue,Lancashire County Council,17758
Chorley Borough Council,http://statistics.data.gov.uk/id/local-authority/30UE,Capital,Capital,Early Intervention,Grants,3002,Capital Expenditure,Capital,grant ADDRESS REDACTED,27/06/2018,130561,"4,547.00",Capital,Lancashire County Council,17758
Chorley Borough Council,http://statistics.data.gov.uk/id/local-authority/30UE,Capital,Capital,Early Intervention,Grants,3002,Capital Expenditure,Capital,ADDRESS REDACTED,27/06/2018,130563,"6,727.00",Capital,Lancashire County Council,17758
Chorley Borough Council,http://statistics.data.gov.uk/id/local-authority/30UE,Capital,Capital,Early Intervention,Grants,3002,Capital Expenditure,Capital,grant ADDRESS REDACTED,27/06/2018,130567,"5,125.00",Capital,Lancashire County Council,17758
Chorley Borough Council,http://statistics.data.gov.uk/id/local-authority/30UE,Capital,Capital,Early Intervention,Grants,3002,Capital Expenditure,Capital,ADDRESS REDACTED,27/06/2018,130568,"1,864.27",Capital,Lancashire County Council,17758
Chorley Borough Council,http://statistics.data.gov.uk/id/local-authority/30UE,Capital,Capital,Early Intervention,Grants,3002,Capital Expenditure,Capital,ADDRESS REDACTED,27/06/2018,130570,"5,808.00",Capital,Lancashire County Council,17758
Chorley Borough Council,http://statistics.data.gov.uk/id/local-authority/30UE,Unapportionable Central OHeads,1009,Policy & Governance,Publicity - Advertising,40157,Miscellaneous Expenses,5034,2 Sponsor roundabout sign for Hartwood Roundabout,27/06/2018,130636,263.12,Revenue,Lancashire County Council,20027
Chorley Borough Council,http://statistics.data.gov.uk/id/local-authority/30UE,Corporate Management,1008,Customer & Digital,Clinical Waste Collection,50007,Private Contractors,5042,"Disposal of clinical waste from Chorley   household. April 2017 to March 2018.   Yellow bag collections, approx. 550 per   month.",27/06/2018,130427,848.54,Revenue,Lancashire Teaching Hospitals NHS FT,19003
Chorley Borough Council,http://statistics.data.gov.uk/id/local-authority/30UE,Corporate Management,1008,Policy & Governance,Rent/Hire Of Premises,20017,Premises Rents,5007,1st instalment for Refernet of 5k (2nd instalment due after go live within next six months),27/06/2018,130402,"5,000.00",Revenue,Lancashire West Citizens Advice Bureaux,17035
Chorley Borough Council,http://statistics.data.gov.uk/id/local-authority/30UE,Private Sector HSG Renewal,1073,Early Intervention,External Contractor,40198,Miscellaneous Expenses,5034,Provision of Energy Switching Support Services (funded by LCC IHIS funds) during April 2018,20/06/2018,130403,427.12,Revenue,Lancashire West Citizens Advice Bureaux,17035
Chorley Borough Council,http://statistics.data.gov.uk/id/local-authority/30UE,Private Sector HSG Renewal,1073,Early Intervention,External Contractor,40198,Miscellaneous Expenses,5034,Provision of Energy Switching Support Services (funded by LCC IHIS funds) during May 2018,22/06/2018,130531,519.99,Revenue,Lancashire West Citizens Advice Bureaux,17035
Chorley Borough Council,http://statistics.data.gov.uk/id/local-authority/30UE,Central Support Services,1009,Customer & Digital,Miscellaneous Expenses,40200,Miscellaneous Expenses,5034,Mesh Vinyl Banners (Chorley Council) 50% of full cost from Design 4 Print,27/06/2018,130532,300.00,Revenue,Lancashire West Citizens Advice Bureaux,17035
Chorley Borough Council,http://statistics.data.gov.uk/id/local-authority/30UE,Capital,Capital,Business Development & Growth,Main Contractor,3007,Capital Expenditure,Capital,"Landscape Works at Harpers Lane Recreation Ground. Refurbishment of gates and railings, existing ball court enhancement",06/06/2018,129841,"25,424.51",Capital,Landscape Engineering Ltd,54727
Chorley Borough Council,http://statistics.data.gov.uk/id/local-authority/30UE,Capital,Capital,Business Development & Growth,Main Contractor,3007,Capital Expenditure,Capital,"Landscape Works at Coronation Recreation Ground.  Refurbishment of gates and railings, refurbishment of single tennis court",22/06/2018,130431,"20,414.79",Capital,Landscape Engineering Ltd,54727
Chorley Borough Council,http://statistics.data.gov.uk/id/local-authority/30UE,Capital,Capital,Business Development & Growth,Main Contractor,3007,Capital Expenditure,Capital,"Landscape Works at Harpers Lane Recreation Ground. Refurbishment of gates and railings, existing ball court enhancement",27/06/2018,130432,"39,009.51",Capital,Landscape Engineering Ltd,54727
Chorley Borough Council,http://statistics.data.gov.uk/id/local-authority/30UE,Development Control,1091,Policy & Governance,Car Leasing Payment,14100,Direct Employee Expenses,5001,NAME REDACTED,20/06/2018,130366,"3,085.68",Revenue,LeasePlan UK Ltd T/A Automotive Leasing,65197
Chorley Borough Council,http://statistics.data.gov.uk/id/local-authority/30UE,Development Control,1091,Policy & Governance,Car Leasing Payment,14100,Direct Employee Expenses,5001,Car Leasing,20/06/2018,130366,263.61,Revenue,LeasePlan UK Ltd T/A Automotive Leasing,65197
Chorley Borough Council,http://statistics.data.gov.uk/id/local-authority/30UE,Unapportionable Central OHeads,1009,Customer & Digital,Professional Fees,14011,Direct Employee Expenses,5001,Capacity Grid Empty Home Review 2018,08/06/2018,129517,"4,623.10",Revenue,Liberata (Capacity Grid),67989
Chorley Borough Council,http://statistics.data.gov.uk/id/local-authority/30UE,Central Support Services,1009,Early Intervention,Training Course Fees,17010,Indirect Employee Expenses,5002,Legal Training- Preston CC 9/10th May 2018  NAMES REDACTED,22/06/2018,130529,418.80,Revenue,Liberata UK,20716
Chorley Borough Council,http://statistics.data.gov.uk/id/local-authority/30UE,Unapportionable Central OHeads,1009,Policy & Governance,Exhibitions & Special Events,40158,Miscellaneous Expenses,5034,Hire of Climbing wall for Sunday 3 June,06/06/2018,130057,550.00,Revenue,Lister Logic LTD,22431
Chorley Borough Council,http://statistics.data.gov.uk/id/local-authority/30UE,Democratic Represent and  Mgnt,1007,Policy & Governance,Training Course Fees,17010,Indirect Employee Expenses,5002,Full Membership - Group Fee  Annual Subscription 01/04/18 - 31/03/19 - NAME REDACTED,22/06/2018,130507,300.00,Revenue,LLG Legal Training,16638
Chorley Borough Council,http://statistics.data.gov.uk/id/local-authority/30UE,Corporate Management,1008,Policy & Governance,Exhibitions & Special Events,40158,Miscellaneous Expenses,5034,Market Walk Activities 31 May,06/06/2018,129783,500.00,Revenue,Louby Lou Ltd,76335
Chorley Borough Council,http://statistics.data.gov.uk/id/local-authority/30UE,Elections,1012,Chief Executive,Stationery,40050,"Printing, Stationery & General",5026,Lyreco Plain Yellow Sticky Notes 50 X 40Mm - Pack Of 12 Pads,22/06/2018,130387,5.70,Revenue,Lyreco UK Ltd,17623
Chorley Borough Council,http://statistics.data.gov.uk/id/local-authority/30UE,Elections,1012,Chief Executive,Stationery,40050,"Printing, Stationery & General",5026,Lyreco Plain Yellow Sticky Notes 75 X 75Mm - Pack Of 12 Pads,22/06/2018,130387,6.60,Revenue,Lyreco UK Ltd,17623
Chorley Borough Council,http://statistics.data.gov.uk/id/local-authority/30UE,Elections,1012,Chief Executive,Stationery,40050,"Printing, Stationery & General",5026,Sellotape (pack of 6),22/06/2018,130387,2.52,Revenue,Lyreco UK Ltd,17623
Chorley Borough Council,http://statistics.data.gov.uk/id/local-authority/30UE,Elections,1012,Chief Executive,Stationery,40050,"Printing, Stationery & General",5026,BX 5000 Lyreco Staples 26/6,22/06/2018,130387,0.62,Revenue,Lyreco UK Ltd,17623
Chorley Borough Council,http://statistics.data.gov.uk/id/local-authority/30UE,Elections,1012,Chief Executive,Stationery,40050,"Printing, Stationery & General",5026,Elastic Bands 15mm x 230mm,22/06/2018,130387,19.92,Revenue,Lyreco UK Ltd,17623
Chorley Borough Council,http://statistics.data.gov.uk/id/local-authority/30UE,Elections,1012,Chief Executive,Stationery,40050,"Printing, Stationery & General",5026,Elastic bands 3mm x 90mm,22/06/2018,130387,63.36,Revenue,Lyreco UK Ltd,17623
Chorley Borough Council,http://statistics.data.gov.uk/id/local-authority/30UE,Elections,1012,Chief Executive,Stationery,40050,"Printing, Stationery & General",5026,Elastic bands 3mm x 75mm,22/06/2018,130387,79.20,Revenue,Lyreco UK Ltd,17623
Chorley Borough Council,http://statistics.data.gov.uk/id/local-authority/30UE,Elections,1012,Chief Executive,Stationery,40050,"Printing, Stationery & General",5026,Rubber Bands - No. 34 3mm x 100mm,22/06/2018,130387,63.36,Revenue,Lyreco UK Ltd,17623
Chorley Borough Council,http://statistics.data.gov.uk/id/local-authority/30UE,Elections,1012,Chief Executive,Stationery,40050,"Printing, Stationery & General",5026,Elastic Bands 2mm x 200mm,22/06/2018,130387,55.20,Revenue,Lyreco UK Ltd,17623
Chorley Borough Council,http://statistics.data.gov.uk/id/local-authority/30UE,Unapportionable Central OHeads,1009,Chief Executive,Stationery,40050,"Printing, Stationery & General",5026,Lyreco Plain Yellow Sticky Notes 125 X 75Mm - Pack Of 12 Pads,29/06/2018,130578,1.32,Revenue,Lyreco UK Ltd,17623
Chorley Borough Council,http://statistics.data.gov.uk/id/local-authority/30UE,Unapportionable Central OHeads,1009,Chief Executive,Stationery,40050,"Printing, Stationery & General",5026,paper clips,29/06/2018,130578,2.49,Revenue,Lyreco UK Ltd,17623
Chorley Borough Council,http://statistics.data.gov.uk/id/local-authority/30UE,Unapportionable Central OHeads,1009,Chief Executive,Stationery,40050,"Printing, Stationery & General",5026,LYRECO RETRACTABLE GEL INK BLACK PENS 0.5MM LINE WIDTH - BOX OF 12,29/06/2018,130578,5.28,Revenue,Lyreco UK Ltd,17623
Chorley Borough Council,http://statistics.data.gov.uk/id/local-authority/30UE,Unapportionable Central OHeads,1009,Chief Executive,Computer Consumables,40099,Communication and Computing,5028,Lyreco Hb Pencils - Box Of 12,29/06/2018,130578,0.26,Revenue,Lyreco UK Ltd,17623
Chorley Borough Council,http://statistics.data.gov.uk/id/local-authority/30UE,Unapportionable Central OHeads,1009,Chief Executive,Stationery,40050,"Printing, Stationery & General",5026,Lyreco Bullet Tip Assorted Colour Whiteboard Markers - Wallet Of 4,29/06/2018,130578,0.74,Revenue,Lyreco UK Ltd,17623
Chorley Borough Council,http://statistics.data.gov.uk/id/local-authority/30UE,Unapportionable Central OHeads,1009,Chief Executive,Stationery,40050,"Printing, Stationery & General",5026,Lyreco Bullet Tip Assorted Colour Flipchart Markers - Wallet Of 4,29/06/2018,130578,1.42,Revenue,Lyreco UK Ltd,17623
Chorley Borough Council,http://statistics.data.gov.uk/id/local-authority/30UE,Unapportionable Central OHeads,1009,Chief Executive,Stationery,40050,"Printing, Stationery & General",5026,Lyreco Sticky notes 76x76,29/06/2018,130578,3.96,Revenue,Lyreco UK Ltd,17623
Chorley Borough Council,http://statistics.data.gov.uk/id/local-authority/30UE,Unapportionable Central OHeads,1009,Chief Executive,Stationery,40050,"Printing, Stationery & General",5026,Papemate Inkjoy Blue Pen,29/06/2018,130578,1.50,Revenue,Lyreco UK Ltd,17623
Chorley Borough Council,http://statistics.data.gov.uk/id/local-authority/30UE,Unapportionable Central OHeads,1009,Chief Executive,Stationery,40050,"Printing, Stationery & General",5026,Micron Stick Ball Point,29/06/2018,130578,1.50,Revenue,Lyreco UK Ltd,17623
Chorley Borough Council,http://statistics.data.gov.uk/id/local-authority/30UE,Unapportionable Central OHeads,1009,Chief Executive,Stationery,40050,"Printing, Stationery & General",5026,ADHESIVE LABELS 50MM DIA - COMPANY SEAL - RED - PACK OF 8,29/06/2018,130578,3.36,Revenue,Lyreco UK Ltd,17623
Chorley Borough Council,http://statistics.data.gov.uk/id/local-authority/30UE,Unapportionable Central OHeads,1009,Chief Executive,Stationery,40050,"Printing, Stationery & General",5026,Elba Spring Pocket Files - Green,29/06/2018,130578,14.35,Revenue,Lyreco UK Ltd,17623
Chorley Borough Council,http://statistics.data.gov.uk/id/local-authority/30UE,Unapportionable Central OHeads,1009,Chief Executive,Stationery,40050,"Printing, Stationery & General",5026,Lyreco White Storage Boxes 250 X 327 X 415Mm - Box Of 10,29/06/2018,130578,17.47,Revenue,Lyreco UK Ltd,17623
Chorley Borough Council,http://statistics.data.gov.uk/id/local-authority/30UE,Unapportionable Central OHeads,1009,Chief Executive,Stationery,40050,"Printing, Stationery & General",5026,Lyreco White C4 Self Seal Window Envelopes 100Gsm - Box Of 250,29/06/2018,130578,6.12,Revenue,Lyreco UK Ltd,17623
Chorley Borough Council,http://statistics.data.gov.uk/id/local-authority/30UE,Unapportionable Central OHeads,1009,Chief Executive,Stationery,40050,"Printing, Stationery & General",5026,Impega Budget Yellow Highlighters - Box Of 10,29/06/2018,130578,5.20,Revenue,Lyreco UK Ltd,17623
Chorley Borough Council,http://statistics.data.gov.uk/id/local-authority/30UE,Unapportionable Central OHeads,1009,Chief Executive,Stationery,40050,"Printing, Stationery & General",5026,Verbatim CD 700mb/80 mins pack of 100,29/06/2018,130578,18.76,Revenue,Lyreco UK Ltd,17623
Chorley Borough Council,http://statistics.data.gov.uk/id/local-authority/30UE,Unapportionable Central OHeads,1009,Chief Executive,Stationery,40050,"Printing, Stationery & General",5026,VERBATIM DVD-R PRINTABLE 4.GB 1X-16X - SPINDLE OF 25,29/06/2018,130578,51.48,Revenue,Lyreco UK Ltd,17623
Chorley Borough Council,http://statistics.data.gov.uk/id/local-authority/30UE,Unapportionable Central OHeads,1009,Chief Executive,Stationery,40050,"Printing, Stationery & General",5026,2.182.763 PK25 FELLOWES  CD SLIM CASES BLACK,29/06/2018,130578,10.80,Revenue,Lyreco UK Ltd,17623
Chorley Borough Council,http://statistics.data.gov.uk/id/local-authority/30UE,Unapportionable Central OHeads,1009,Chief Executive,Stationery,40050,"Printing, Stationery & General",5026,Micron Stick Ball Point,29/06/2018,130578,1.50,Revenue,Lyreco UK Ltd,17623
Chorley Borough Council,http://statistics.data.gov.uk/id/local-authority/30UE,Unapportionable Central OHeads,1009,Chief Executive,Stationery,40050,"Printing, Stationery & General",5026,HP Black Ink Cartridge 953,29/06/2018,130578,26.69,Revenue,Lyreco UK Ltd,17623
Chorley Borough Council,http://statistics.data.gov.uk/id/local-authority/30UE,Unapportionable Central OHeads,1009,Chief Executive,Stationery,40050,"Printing, Stationery & General",5026,HP Blue Ink Cartridge 953,29/06/2018,130578,19.56,Revenue,Lyreco UK Ltd,17623
Chorley Borough Council,http://statistics.data.gov.uk/id/local-authority/30UE,Unapportionable Central OHeads,1009,Chief Executive,Stationery,40050,"Printing, Stationery & General",5026,HP Yellow Ink Cartridge 953,29/06/2018,130578,19.56,Revenue,Lyreco UK Ltd,17623
Chorley Borough Council,http://statistics.data.gov.uk/id/local-authority/30UE,Unapportionable Central OHeads,1009,Chief Executive,Stationery,40050,"Printing, Stationery & General",5026,A5 Desktop Display,29/06/2018,130578,15.42,Revenue,Lyreco UK Ltd,17623
Chorley Borough Council,http://statistics.data.gov.uk/id/local-authority/30UE,Unapportionable Central OHeads,1009,Chief Executive,Stationery,40050,"Printing, Stationery & General",5026,Lyreco Draw Unit 4 (Black),29/06/2018,130578,14.83,Revenue,Lyreco UK Ltd,17623
Chorley Borough Council,http://statistics.data.gov.uk/id/local-authority/30UE,Unapportionable Central OHeads,1009,Chief Executive,Stationery,40050,"Printing, Stationery & General",5026,Lyreco White Magazine Files 300 X 100 X 230Mm - Pack Of 10,29/06/2018,130578,21.55,Revenue,Lyreco UK Ltd,17623
Chorley Borough Council,http://statistics.data.gov.uk/id/local-authority/30UE,Unapportionable Central OHeads,1009,Chief Executive,Stationery,40050,"Printing, Stationery & General",5026,Sliding do not disturb sign,29/06/2018,130578,12.52,Revenue,Lyreco UK Ltd,17623
Chorley Borough Council,http://statistics.data.gov.uk/id/local-authority/30UE,Unapportionable Central OHeads,1009,Chief Executive,Stationery,40050,"Printing, Stationery & General",5026,CEP Wall Rack in black,29/06/2018,130578,20.00,Revenue,Lyreco UK Ltd,17623
Chorley Borough Council,http://statistics.data.gov.uk/id/local-authority/30UE,Unapportionable Central OHeads,1009,Chief Executive,Stationery,40050,"Printing, Stationery & General",5026,Cream Card,29/06/2018,130578,7.55,Revenue,Lyreco UK Ltd,17623
Chorley Borough Council,http://statistics.data.gov.uk/id/local-authority/30UE,Unapportionable Central OHeads,1009,Chief Executive,Stationery,40050,"Printing, Stationery & General",5026,Laminating Pouches,29/06/2018,130578,3.20,Revenue,Lyreco UK Ltd,17623
Chorley Borough Council,http://statistics.data.gov.uk/id/local-authority/30UE,Unapportionable Central OHeads,1009,Chief Executive,Stationery,40050,"Printing, Stationery & General",5026,Gel Mouse Pad,29/06/2018,130580,27.22,Revenue,Lyreco UK Ltd,17623
Chorley Borough Council,http://statistics.data.gov.uk/id/local-authority/30UE,Unapportionable Central OHeads,1009,Chief Executive,Stationery,40050,"Printing, Stationery & General",5026,Footrest,29/06/2018,130580,46.66,Revenue,Lyreco UK Ltd,17623
Chorley Borough Council,http://statistics.data.gov.uk/id/local-authority/30UE,Unapportionable Central OHeads,1009,Chief Executive,Stationery,40050,"Printing, Stationery & General",5026,Tower Fan,29/06/2018,130580,66.16,Revenue,Lyreco UK Ltd,17623
Chorley Borough Council,http://statistics.data.gov.uk/id/local-authority/30UE,Unapportionable Central OHeads,1009,Chief Executive,Stationery,40050,"Printing, Stationery & General",5026,Lyreco Red Magnets 22mm - Pack of 10,29/06/2018,130580,6.88,Revenue,Lyreco UK Ltd,17623
Chorley Borough Council,http://statistics.data.gov.uk/id/local-authority/30UE,Unapportionable Central OHeads,1009,Chief Executive,Stationery,40050,"Printing, Stationery & General",5026,Headsets,29/06/2018,130580,463.20,Revenue,Lyreco UK Ltd,17623
Chorley Borough Council,http://statistics.data.gov.uk/id/local-authority/30UE,Unapportionable Central OHeads,1009,Chief Executive,Stationery,40050,"Printing, Stationery & General",5026,Lyreco Budget PP Pack Tape (pack 6),29/06/2018,130580,2.44,Revenue,Lyreco UK Ltd,17623
Chorley Borough Council,http://statistics.data.gov.uk/id/local-authority/30UE,Unapportionable Central OHeads,1009,Chief Executive,Stationery,40050,"Printing, Stationery & General",5026,Micron Stick Ball Point,29/06/2018,130580,3.00,Revenue,Lyreco UK Ltd,17623
Chorley Borough Council,http://statistics.data.gov.uk/id/local-authority/30UE,Unapportionable Central OHeads,1009,Chief Executive,Stationery,40050,"Printing, Stationery & General",5026,Papemate Inkjoy Blue Pen,29/06/2018,130580,1.50,Revenue,Lyreco UK Ltd,17623
Chorley Borough Council,http://statistics.data.gov.uk/id/local-authority/30UE,Unapportionable Central OHeads,1009,Chief Executive,Stationery,40050,"Printing, Stationery & General",5026,LYRECO BUDGET WHITE 8 X 5INCH SHORTHAND NOTEBOOKS (RULED) - PACK OF 20(X80 SHTS),29/06/2018,130580,4.00,Revenue,Lyreco UK Ltd,17623
Chorley Borough Council,http://statistics.data.gov.uk/id/local-authority/30UE,Unapportionable Central OHeads,1009,Chief Executive,Stationery,40050,"Printing, Stationery & General",5026, A4 Multi-Punched Plastic Pockets 80 Microns - Pack Of 100,29/06/2018,130580,1.55,Revenue,Lyreco UK Ltd,17623
Chorley Borough Council,http://statistics.data.gov.uk/id/local-authority/30UE,Unapportionable Central OHeads,1009,Chief Executive,Stationery,40050,"Printing, Stationery & General",5026,5000 Staples,29/06/2018,130580,2.22,Revenue,Lyreco UK Ltd,17623
Chorley Borough Council,http://statistics.data.gov.uk/id/local-authority/30UE,Unapportionable Central OHeads,1009,Chief Executive,Stationery,40050,"Printing, Stationery & General",5026,Lyreco Black A4 2 O-Ring Binder 25Mm Spine - Box Of 10,29/06/2018,130580,4.60,Revenue,Lyreco UK Ltd,17623
Chorley Borough Council,http://statistics.data.gov.uk/id/local-authority/30UE,Unapportionable Central OHeads,1009,Chief Executive,Stationery,40050,"Printing, Stationery & General",5026,Rubber Bands 1.2Mm X 90Mm - 454G Box,29/06/2018,130580,9.50,Revenue,Lyreco UK Ltd,17623
Chorley Borough Council,http://statistics.data.gov.uk/id/local-authority/30UE,Unapportionable Central OHeads,1009,Chief Executive,Stationery,40050,"Printing, Stationery & General",5026,"6469418	LYRECO A3 GLOSS LAMINATING POUCH - Box 100",29/06/2018,130580,6.51,Revenue,Lyreco UK Ltd,17623
Chorley Borough Council,http://statistics.data.gov.uk/id/local-authority/30UE,Unapportionable Central OHeads,1009,Chief Executive,Computer Equipment-Purchase,40098,Communication and Computing,5028,Keyboard Gel Pad Wrist Rest,29/06/2018,130580,31.04,Revenue,Lyreco UK Ltd,17623
Chorley Borough Council,http://statistics.data.gov.uk/id/local-authority/30UE,Service Management & Support,1009,Customer & Digital,Grounds Maintenance Contractor,20043,Grounds Maintenance Costs,5013,As per invoice 31 - tree works carried out 01/04/18-30/04/18,13/06/2018,130185,"2,210.00",Revenue,M J Walker,62044
Chorley Borough Council,http://statistics.data.gov.uk/id/local-authority/30UE,Capital,Capital,Early Intervention,Grants,3002,Capital Expenditure,Capital,ADDRESS REDACTED,06/06/2018,129927,"3,615.00",Capital,M.J Park Building Contractors,20367
Chorley Borough Council,http://statistics.data.gov.uk/id/local-authority/30UE,Capital,Capital,Early Intervention,Grants,3002,Capital Expenditure,Capital,ADDRESS REDACTED,06/06/2018,130012,"3,410.00",Capital,M.J Park Building Contractors,20367
Chorley Borough Council,http://statistics.data.gov.uk/id/local-authority/30UE,Capital,Capital,Early Intervention,Grants,3002,Capital Expenditure,Capital,ADDRESS REDACTED,20/06/2018,130347,"3,690.00",Capital,M.J Park Building Contractors,20367
Chorley Borough Council,http://statistics.data.gov.uk/id/local-authority/30UE,Unapportionable Central OHeads,1009,Policy & Governance,Exhibitions & Special Events,40158,Miscellaneous Expenses,5034,Events photography,22/06/2018,130505,275.00,Revenue,Martin Birchall Photography,22503
Chorley Borough Council,http://statistics.data.gov.uk/id/local-authority/30UE,Building Control,1090,Policy & Governance,Operational Employees Salaries,10000,Direct Employee Expenses,5001,Fees for NAME REDACTED for w/c 14/05/18,13/06/2018,130042,"1,377.50",Revenue,Matchtech,77343
Chorley Borough Council,http://statistics.data.gov.uk/id/local-authority/30UE,Building Control,1090,Policy & Governance,Operational Employees Salaries,10000,Direct Employee Expenses,5001,Fees for NAME REDACTED for w/c 21/05/18 - Invoice No 3019152,13/06/2018,130235,"1,239.56",Revenue,Matchtech,77343
Chorley Borough Council,http://statistics.data.gov.uk/id/local-authority/30UE,Central Support Services,1009,Policy & Governance,Agency Staff,13000,Direct Employee Expenses,5001,AGENCY FEES,06/06/2018,129892,784.80,Revenue,Matrix SCM Ltd,22128
Chorley Borough Council,http://statistics.data.gov.uk/id/local-authority/30UE,Unapportionable Central OHeads,1009,Policy & Governance,Agency Staff,13000,Direct Employee Expenses,5001,AGENCY FEES,06/06/2018,129892,340.98,Revenue,Matrix SCM Ltd,22128
Chorley Borough Council,http://statistics.data.gov.uk/id/local-authority/30UE,Central Support Services,1009,Policy & Governance,Agency Staff,13000,Direct Employee Expenses,5001,AGENCY FEES,06/06/2018,129892,769.68,Revenue,Matrix SCM Ltd,22128
Chorley Borough Council,http://statistics.data.gov.uk/id/local-authority/30UE,Central Support Services,1009,Policy & Governance,Agency Staff,13000,Direct Employee Expenses,5001,AGENCY FEES,06/06/2018,129978,784.80,Revenue,Matrix SCM Ltd,22128
Chorley Borough Council,http://statistics.data.gov.uk/id/local-authority/30UE,Unapportionable Central OHeads,1009,Policy & Governance,Agency Staff,13000,Direct Employee Expenses,5001,AGENCY FEES,06/06/2018,129978,365.12,Revenue,Matrix SCM Ltd,22128
Chorley Borough Council,http://statistics.data.gov.uk/id/local-authority/30UE,Central Support Services,1009,Policy & Governance,Agency Staff,13000,Direct Employee Expenses,5001,AGENCY FEES,06/06/2018,129978,769.68,Revenue,Matrix SCM Ltd,22128
Chorley Borough Council,http://statistics.data.gov.uk/id/local-authority/30UE,Central Support Services,1009,Policy & Governance,Agency Staff,13000,Direct Employee Expenses,5001,AGENCY FEES,06/06/2018,129979,784.80,Revenue,Matrix SCM Ltd,22128
Chorley Borough Council,http://statistics.data.gov.uk/id/local-authority/30UE,Unapportionable Central OHeads,1009,Policy & Governance,Agency Staff,13000,Direct Employee Expenses,5001,AGENCY FEES,06/06/2018,129979,431.50,Revenue,Matrix SCM Ltd,22128
Chorley Borough Council,http://statistics.data.gov.uk/id/local-authority/30UE,Central Support Services,1009,Policy & Governance,Agency Staff,13000,Direct Employee Expenses,5001,AGENCY FEES,06/06/2018,129979,769.68,Revenue,Matrix SCM Ltd,22128
Chorley Borough Council,http://statistics.data.gov.uk/id/local-authority/30UE,Central Support Services,1009,Policy & Governance,Agency Staff,13000,Direct Employee Expenses,5001,AGENCY FEES,06/06/2018,130037,784.80,Revenue,Matrix SCM Ltd,22128
Chorley Borough Council,http://statistics.data.gov.uk/id/local-authority/30UE,Unapportionable Central OHeads,1009,Policy & Governance,Agency Staff,13000,Direct Employee Expenses,5001,AGENCY FEES,06/06/2018,130037,425.47,Revenue,Matrix SCM Ltd,22128
Chorley Borough Council,http://statistics.data.gov.uk/id/local-authority/30UE,Central Support Services,1009,Policy & Governance,Agency Staff,13000,Direct Employee Expenses,5001,AGENCY FEES,06/06/2018,130037,769.68,Revenue,Matrix SCM Ltd,22128
Chorley Borough Council,http://statistics.data.gov.uk/id/local-authority/30UE,Service Management & Support,1009,Customer & Digital,Supplies-Grounds Maintenance,40025,"Equipment, Furniture & Materia",5023,20 ton of Grade 1 top soil,06/06/2018,130022,400.00,Revenue,Mc & Ma Stewart (Haulage Ltd),16627
Chorley Borough Council,http://statistics.data.gov.uk/id/local-authority/30UE,Service Management & Support,1009,Customer & Digital,Maintenance Street Furniture,20055,Grounds Maintenance Costs,5013,All on rails  Bedford Street @  29.60 Mile Stone Meadow @  31.88 Fell View x 2 @  26.18 Lords Croft  26.18 Coppice Lane,27/06/2018,130504,325.00,Revenue,Midland Signs (Leicester) Ltd,16606
Chorley Borough Council,http://statistics.data.gov.uk/id/local-authority/30UE,Service Management & Support,1009,Customer & Digital,Supplies-Grounds Maintenance,40025,"Equipment, Furniture & Materia",5023,"Supply various troughs, hanging baskets, half moons and wire lamp post baskets",27/06/2018,130372,"6,981.53",Revenue,Midstream (West Lancs) Ltd,20873
Chorley Borough Council,http://statistics.data.gov.uk/id/local-authority/30UE,Service Management & Support,1009,Customer & Digital,Supplies-Grounds Maintenance,40025,"Equipment, Furniture & Materia",5023,van hire,27/06/2018,130372,357.50,Revenue,Midstream (West Lancs) Ltd,20873
Chorley Borough Council,http://statistics.data.gov.uk/id/local-authority/30UE,Capital,Capital,Early Intervention,Grants,3002,Capital Expenditure,Capital,ADDRESS REDACTED,06/06/2018,130011,"5,005.66",Capital,Mint Northwest Ltd,65607
Chorley Borough Council,http://statistics.data.gov.uk/id/local-authority/30UE,Capital,Capital,Early Intervention,Grants,3002,Capital Expenditure,Capital,ADDRESS REDACTED,15/06/2018,130228,"4,361.67",Capital,Mint Northwest Ltd,65607
Chorley Borough Council,http://statistics.data.gov.uk/id/local-authority/30UE,Homelessness,1075,Early Intervention,Window Cleaning,20034,Cleaning and Domestic Supplies,5012,Window cleaning Services contract,22/06/2018,130368,280.00,Revenue,Mr Mark Hodgson,22043
Chorley Borough Council,http://statistics.data.gov.uk/id/local-authority/30UE,Business Support,1095,Business Development & Growth,Grants To Other Organisations,40127,Grants and Subscriptions,5031,grant,15/06/2018,130326,"3,904.69",Revenue,NAME REDACTED,56396
Chorley Borough Council,http://statistics.data.gov.uk/id/local-authority/30UE,Corporate Management,1008,Customer & Digital,Other Contributions,40145,Grants and Subscriptions,5031,PLRG flood grant,20/06/2018,130418,"4,441.20",Revenue,NAME REDACTED,77407
Chorley Borough Council,http://statistics.data.gov.uk/id/local-authority/30UE,Development Control,1091,Customer & Digital,Refunds,40220,Miscellaneous Expenses,5034,paid by cheque on 21.2.18- receipt number is 07101608,20/06/2018,130070,462.00,Revenue,NAME REDACTED,77397
Chorley Borough Council,http://statistics.data.gov.uk/id/local-authority/30UE,Central Support Services,1009,Early Intervention,Refunds,40220,Miscellaneous Expenses,5034,refund street trading,29/06/2018,130496,500.00,Revenue,NAME REDACTED,77406
Chorley Borough Council,http://statistics.data.gov.uk/id/local-authority/30UE,Service Management & Support,1009,Customer & Digital,Training Course Fees,17010,Indirect Employee Expenses,5002,Tractor & side arm flail training,27/06/2018,130401,560.00,Revenue,Myerscough College,18214
Chorley Borough Council,http://statistics.data.gov.uk/id/local-authority/30UE,Economic Development,1096,Business Development & Growth,Miscellaneous Expenses,40200,Miscellaneous Expenses,5034,Quote reference 20925 - 50757: 6PP 1/3 A4 Markets Leaflet 210 X 99 From Press-Ready PDF Supplied  all ticks and bleeds PDF,06/06/2018,130010,525.00,Revenue,N B Colour Print Ltd,17917
Chorley Borough Council,http://statistics.data.gov.uk/id/local-authority/30UE,Unapportionable Central OHeads,1009,Policy & Governance,Publicity - Advertising,40157,Miscellaneous Expenses,5034,Astley Broadsheet,13/06/2018,130292,700.00,Revenue,N B Colour Print Ltd,17917
Chorley Borough Council,http://statistics.data.gov.uk/id/local-authority/30UE,Unapportionable Central OHeads,1009,Policy & Governance,Printing,40043,"Printing, Stationery & General",5026,What`s happening magazine printing Estimate 21780,29/06/2018,130656,"2,699.00",Revenue,N B Colour Print Ltd,17917
Chorley Borough Council,http://statistics.data.gov.uk/id/local-authority/30UE,Corporate Management,1008,Policy & Governance,Publicity - Advertising,40157,Miscellaneous Expenses,5034,Chorley Citizen Full page adverts x 2 - Garden waste collections,06/06/2018,129507,447.08,Revenue,Newsquest (Lancashire) Limited,18117
Chorley Borough Council,http://statistics.data.gov.uk/id/local-authority/30UE,Tourism,1039,Policy & Governance,Supplies-Grounds Maintenance,40025,"Equipment, Furniture & Materia",5023,Flower show advertising.,20/06/2018,130251,"1,000.00",Revenue,Newsquest (Lancashire) Limited,18117
Chorley Borough Council,http://statistics.data.gov.uk/id/local-authority/30UE,Central Support Services,1009,Business Development & Growth,Consultants` Fees,40077,Services,5027,sub-consultant through HIVE for Alker Lane works - planning,29/06/2018,130603,"3,000.00",Revenue,Nexus Planning Ltd,77421
Chorley Borough Council,http://statistics.data.gov.uk/id/local-authority/30UE,Unapportionable Central OHeads,1009,Chief Executive,Stationery,40050,"Printing, Stationery & General",5026,Newspaper fro Union St 1 April 2018 - 31 March 2019,29/06/2018,130657,296.10,Revenue,Nooze `n` Booze,19382
Chorley Borough Council,http://statistics.data.gov.uk/id/local-authority/30UE,Unapportionable Central OHeads,1009,Business Development & Growth,General Repairs - Reactive,20004,Repairs Maintenance & Alts,5005,Roof repair at chorley north,06/06/2018,129910,825.00,Revenue,Norman Shawcross Roofing Ltd,77189
Chorley Borough Council,http://statistics.data.gov.uk/id/local-authority/30UE,Housing Strategy,1069,Chief Executive,General Subscriptions,40146,Grants and Subscriptions,5031,Northern Housing Consortium April 2018 - March 2019,22/06/2018,130407,885.00,Revenue,Northern Housing Consortium Ltd,17220
Chorley Borough Council,http://statistics.data.gov.uk/id/local-authority/30UE,Service Management & Support,1009,Customer & Digital,Vehicles and Plant Maintenance,30045,Direct Transport Costs,5016,Please supply Poly-Wire brushes for our Aebi Schmidt Swingo minisweepers,27/06/2018,130409,347.25,Revenue,Northern Municipal Spares Ltd,17752
Chorley Borough Council,http://statistics.data.gov.uk/id/local-authority/30UE,Unapportionable Central OHeads,1009,Customer & Digital,Exhibitions & Special Events,40158,Miscellaneous Expenses,5034,Hire of Vehicle for 3 days,27/06/2018,130494,99.00,Revenue,Northgate Vehicle Hire (NW) Ltd,17360
Chorley Borough Council,http://statistics.data.gov.uk/id/local-authority/30UE,Unapportionable Central OHeads,1009,Customer & Digital,Exhibitions & Special Events,40158,Miscellaneous Expenses,5034,Fuel,27/06/2018,130494,33.21,Revenue,Northgate Vehicle Hire (NW) Ltd,17360
Chorley Borough Council,http://statistics.data.gov.uk/id/local-authority/30UE,Elections,1012,Customer & Digital,Hire Of Vehicles and Plant,30028,Contrct Hire & Operating Lease,5018,Long wheel base Box Style Transit Van at the agreed price of 99 per week.  Can the vehicle be delivered to Bengal St Depot,27/06/2018,130494,131.20,Revenue,Northgate Vehicle Hire (NW) Ltd,17360
Chorley Borough Council,http://statistics.data.gov.uk/id/local-authority/30UE,Parking Services,1066,Business Development & Growth,External Contractors,50008,Private Contractors,5042,"Provision of off street car park enforcement, cash collection, cash counting facilities and third party bulk cash collections April 18",06/06/2018,130041,"4,573.82",Revenue,NSL Limited,67253
Chorley Borough Council,http://statistics.data.gov.uk/id/local-authority/30UE,Central Support Services,1009,Customer & Digital,Consultants` Fees,40077,Services,5027,Nviron Consultancy Nviron Consultancy Pack  6 x Pre Purchased Days Pack DR Plan and Efficiency @ 900  Drive Call off use,20/06/2018,130059,"5,400.00",Revenue,Nviron Limited,77141
Chorley Borough Council,http://statistics.data.gov.uk/id/local-authority/30UE,Democratic Represent and  Mgnt,1007,Chief Executive,General Subscriptions,40146,Grants and Subscriptions,5031,NWEO Annual Subscription,27/06/2018,130586,"4,146.86",Revenue,Nwlaeo,17571
Chorley Borough Council,http://statistics.data.gov.uk/id/local-authority/30UE,Housing Benefit Administration,1077,Customer & Digital,Publications,40054,"Printing, Stationery & General",5026,Web Benefits Calculator software licence annual subscription 21st Feb 18 - 20 Feb 19. 705 + vat.,08/06/2018,130076,705.00,Revenue,Otech Limited,17667
Chorley Borough Council,http://statistics.data.gov.uk/id/local-authority/30UE,Parking Services,1066,Business Development & Growth,External Contractors,50008,Private Contractors,5042,To include the 10 machines coming out of warranty on 21.05.18 to the annual maintenance contract no: UK5-361 ,13/06/2018,130193,612.30,Revenue,Parkeon Ltd,16279
Chorley Borough Council,http://statistics.data.gov.uk/id/local-authority/30UE,Parking Services,1066,Business Development & Growth,External Contractors,50008,Private Contractors,5042,Provision of the maintenance contract for 19 machines across various locations in Chorley for the period of 01.07.18 - 30.06.19,13/06/2018,130253,"11,229.98",Revenue,Parkeon Ltd,16279
Chorley Borough Council,http://statistics.data.gov.uk/id/local-authority/30UE,Unapportionable Central OHeads,1009,Policy & Governance,Service Fees,40056,Services,5027,Occupational Health Fees for May 2018,15/06/2018,130293,"1,094.25",Revenue,People Asset Management Limited,76487
Chorley Borough Council,http://statistics.data.gov.uk/id/local-authority/30UE,Unapportionable Central OHeads,1009,Policy & Governance,Service Fees,40056,Services,5027,non vat,15/06/2018,130293,80.00,Revenue,People Asset Management Limited,76487
Chorley Borough Council,http://statistics.data.gov.uk/id/local-authority/30UE,Capital,Capital,Business Development & Growth,Other Capital Related Fees,3024,Capital Expenditure,Capital,Primrose Gardens May 2017,15/06/2018,130124,"4,328.25",Capital,Perfect Circle JV Ltd,76438
Chorley Borough Council,http://statistics.data.gov.uk/id/local-authority/30UE,Service Management & Support,1009,Customer & Digital,Supplies-Grounds Maintenance,40025,"Equipment, Furniture & Materia",5023,20 Peace Lilys 40 Ivy 40 White Begonias 20 Boston Ferns,06/06/2018,129951,262.10,Revenue,Peter H Smith Limited,17088
Chorley Borough Council,http://statistics.data.gov.uk/id/local-authority/30UE,Central Support Services,1009,Early Intervention,External Contractor,40198,Miscellaneous Expenses,5034,Pest Control services for 2018/19,06/06/2018,129976,340.00,Revenue,Peter L Johnson,16727
Chorley Borough Council,http://statistics.data.gov.uk/id/local-authority/30UE,Central Support Services,1009,Early Intervention,External Contractor,40198,Miscellaneous Expenses,5034,Pest Control services for 2018/19,15/06/2018,130049,255.00,Revenue,Peter L Johnson,16727
Chorley Borough Council,http://statistics.data.gov.uk/id/local-authority/30UE,Central Support Services,1009,Early Intervention,External Contractor,40198,Miscellaneous Expenses,5034,Pest Control services for 2018/19,08/06/2018,130184,340.00,Revenue,Peter L Johnson,16727
Chorley Borough Council,http://statistics.data.gov.uk/id/local-authority/30UE,Central Support Services,1009,Early Intervention,External Contractor,40198,Miscellaneous Expenses,5034,Pest Control services for 2018/19,27/06/2018,130374,340.00,Revenue,Peter L Johnson,16727
Chorley Borough Council,http://statistics.data.gov.uk/id/local-authority/30UE,Central Support Services,1009,Early Intervention,External Contractor,40198,Miscellaneous Expenses,5034,Pest Control services for 2018/19,27/06/2018,130602,340.00,Revenue,Peter L Johnson,16727
Chorley Borough Council,http://statistics.data.gov.uk/id/local-authority/30UE,Parking Services,1066,Business Development & Growth,Miscellaneous Expenses,40200,Miscellaneous Expenses,5034,car park,06/06/2018,129682,352.09,Revenue,Poppy Signs Ltd,21898
Chorley Borough Council,http://statistics.data.gov.uk/id/local-authority/30UE,Capital,Capital,Business Development & Growth,Other Contractor,3012,Capital Expenditure,Capital,Arley Street Car Park / Flat Iron hoardings - As per quote reference: REF10666/2 All prices quoted below are exclusive of VAT,06/06/2018,130003,639.16,Capital,Poppy Signs Ltd,21898
Chorley Borough Council,http://statistics.data.gov.uk/id/local-authority/30UE,Capital,Capital,Business Development & Growth,Other Contractor,3012,Capital Expenditure,Capital,"1 Unit(s) Flat Iron Hoarding; Large full height sticker, size previous photo pictures, easy peel vinyl as before, * 1 Includes Print",06/06/2018,130003,245.00,Capital,Poppy Signs Ltd,21898
Chorley Borough Council,http://statistics.data.gov.uk/id/local-authority/30UE,Capital,Capital,Business Development & Growth,Other Contractor,3012,Capital Expenditure,Capital,AS per quote reference: REF10693/2 Please supply assorted signs as per list below: Friday Street - 2x easy peel stickers,08/06/2018,130093,"1,099.51",Capital,Poppy Signs Ltd,21898
Chorley Borough Council,http://statistics.data.gov.uk/id/local-authority/30UE,Capital,Capital,Policy & Governance,Other Capital Related Fees,3024,Capital Expenditure,Capital,3 x Mesh Banners  REF10729/2,15/06/2018,130310,380.36,Capital,Poppy Signs Ltd,21898
Chorley Borough Council,http://statistics.data.gov.uk/id/local-authority/30UE,Capital,Capital,Business Development & Growth,Other Contractor,3012,Capital Expenditure,Capital,"As per quote ref 10725/3 Please supply the following: Friday Street Trader and other signs All prices quotee exclusive of VAT",20/06/2018,130400,556.45,Capital,Poppy Signs Ltd,21898
Chorley Borough Council,http://statistics.data.gov.uk/id/local-authority/30UE,Tourism,1039,Policy & Governance,Publicity - Advertising,40157,Miscellaneous Expenses,5034,Chorley flower Show signage REF9872/2,22/06/2018,130554,749.92,Revenue,Poppy Signs Ltd,21898
Chorley Borough Council,http://statistics.data.gov.uk/id/local-authority/30UE,Unapportionable Central OHeads,1009,Policy & Governance,HR Approved Training Expenses,17001,Indirect Employee Expenses,5002,ILM Module 3/Part 1 - training delivery 20/06/18,27/06/2018,130588,"1,200.00",Revenue,Potential Unearthed,22243
Chorley Borough Council,http://statistics.data.gov.uk/id/local-authority/30UE,Unapportionable Central OHeads,1009,Policy & Governance,HR Approved Training Expenses,17001,Indirect Employee Expenses,5002,Booklets,27/06/2018,130588,55.00,Revenue,Potential Unearthed,22243
Chorley Borough Council,http://statistics.data.gov.uk/id/local-authority/30UE,Unapportionable Central OHeads,1009,Chief Executive,Photocopier Consumables,40049,"Printing, Stationery & General",5026,Evolution Everyday A3 80gsm box 2500,06/06/2018,130112,25.93,Revenue,Premier Paper Group,54451
Chorley Borough Council,http://statistics.data.gov.uk/id/local-authority/30UE,Unapportionable Central OHeads,1009,Chief Executive,Photocopier Consumables,40049,"Printing, Stationery & General",5026,"Evolution Everyday A4 80gsm, Box 2500",06/06/2018,130112,513.00,Revenue,Premier Paper Group,54451
Chorley Borough Council,http://statistics.data.gov.uk/id/local-authority/30UE,Unapportionable Central OHeads,1009,Chief Executive,Photocopier Consumables,40049,"Printing, Stationery & General",5026,White Card A4 250gsm,06/06/2018,130112,22.48,Revenue,Premier Paper Group,54451
Chorley Borough Council,http://statistics.data.gov.uk/id/local-authority/30UE,Unapportionable Central OHeads,1009,Policy & Governance,Photocopier Consumables,40049,"Printing, Stationery & General",5026,"Evolution Business, A4 80gsm box 2500",27/06/2018,130593,522.00,Revenue,Premier Paper Group,54451
Chorley Borough Council,http://statistics.data.gov.uk/id/local-authority/30UE,Unapportionable Central OHeads,1009,Policy & Governance,Photocopier Consumables,40049,"Printing, Stationery & General",5026,Evolution Everyday A3 80gsm box 2500,27/06/2018,130593,25.93,Revenue,Premier Paper Group,54451
Chorley Borough Council,http://statistics.data.gov.uk/id/local-authority/30UE,Unapportionable Central OHeads,1009,Policy & Governance,Refreshments,40036,Catering,5024,"Supply, Sanitation, provision of cups and water for all Pressure Coolers for Council Sites for the month of April 2018",15/06/2018,129793,457.20,Revenue,Pressure Coolers Ltd T/A Maestro International Ltd,19767
Chorley Borough Council,http://statistics.data.gov.uk/id/local-authority/30UE,Unapportionable Central OHeads,1009,Policy & Governance,Refreshments,40036,Catering,5024,"Supply, Sanitation, provision of cups and water for all Pressure Coolers for Council Sites for the month of June 2018",15/06/2018,130123,520.20,Revenue,Pressure Coolers Ltd T/A Maestro International Ltd,19767
Chorley Borough Council,http://statistics.data.gov.uk/id/local-authority/30UE,Business Support,1095,Business Development & Growth,Miscellaneous Expenses,40200,Miscellaneous Expenses,5034,Enabling works to the Digital Office Hub,29/06/2018,130478,"173,012.50",Revenue,Primrose Holdings 1995 Ltd,17786
Chorley Borough Council,http://statistics.data.gov.uk/id/local-authority/30UE,Elections,1012,Policy & Governance,Printing,40043,"Printing, Stationery & General",5026,"Parish Postal vote packs, 1st and 2nd issue",06/06/2018,130127,"2,700.64",Revenue,Print Image Network,21171
Chorley Borough Council,http://statistics.data.gov.uk/id/local-authority/30UE,Other Short Term Creditors,,Policy & Governance,General Balances,100,Balance Sheet,Balance,ded for 17/6/18,27/06/2018,130599,"4,303.90",Revenue,PRUDENTIAL,18178
Chorley Borough Council,http://statistics.data.gov.uk/id/local-authority/30UE,Democratic Represent and  Mgnt,1007,Policy & Governance,Miscellaneous Expenses,40200,Miscellaneous Expenses,5034,Gruffalo for Sunday 3 June,08/06/2018,130118,"2,195.00",Revenue,Rainbow Productions Ltd,21858
Chorley Borough Council,http://statistics.data.gov.uk/id/local-authority/30UE,Corporate Management,1008,Customer & Digital,Consultants` Fees,40077,Services,5027,Consultancy services (phase 2) to support the provision of a waste collection contract,27/06/2018,130501,"2,668.25",Revenue,Ricardo Energy & Environment,76939
Chorley Borough Council,http://statistics.data.gov.uk/id/local-authority/30UE,Capital,Capital,Business Development & Growth,Surveyors Fees,3021,Capital Expenditure,Capital,Provision of Quantity Surveying Services in accordance with tender dated 30.9.2016.,06/06/2018,130074,"3,000.00",Capital,Rider Levett Bucknall,67527
Chorley Borough Council,http://statistics.data.gov.uk/id/local-authority/30UE,Service Management & Support,1009,Customer & Digital,Supplies-Grounds Maintenance,40025,"Equipment, Furniture & Materia",5023,"5 litres of Trustee Amenity; to be delivered to Chorley Council depot, Bengal St PR7 1SA",20/06/2018,130344,"1,080.00",Revenue,Rigby Taylor Ltd,16299
Chorley Borough Council,http://statistics.data.gov.uk/id/local-authority/30UE,Service Management & Support,1009,Customer & Digital,Supplies-Grounds Maintenance,40025,"Equipment, Furniture & Materia",5023,"5 litres of Maintain plant growth regulator; to be delivered to Chorley Council depot, Bengal St PR7 1SA",20/06/2018,130344,230.00,Revenue,Rigby Taylor Ltd,16299
Chorley Borough Council,http://statistics.data.gov.uk/id/local-authority/30UE,Service Management & Support,1009,Customer & Digital,Supplies-Grounds Maintenance,40025,"Equipment, Furniture & Materia",5023,10 x 20 litre Mascot Microflow 4-2-8 + Mg,27/06/2018,130373,420.00,Revenue,Rigby Taylor Ltd,16299
Chorley Borough Council,http://statistics.data.gov.uk/id/local-authority/30UE,Democratic Represent and  Mgnt,1007,Policy & Governance,Processional Routes,40177,Miscellaneous Expenses,5034,Traffic Management for the Mayor`s Civic Sunday parade in Chorley Town Centre on Sunday 20th May 2018 from approx.10.30am,06/06/2018,130043,565.00,Revenue,Road Safety Services Ltd,69457
Chorley Borough Council,http://statistics.data.gov.uk/id/local-authority/30UE,Elections,1012,Policy & Governance,Postages,40082,Communication and Computing,5028,2nd batch of postal votes for borough/ parish elections - mailed 24 April 2018,06/06/2018,130117,395.27,Revenue,Royal Mail Group Plc,17522
Chorley Borough Council,http://statistics.data.gov.uk/id/local-authority/30UE,Service Management & Support,1009,Customer & Digital,Diesel/Derv,30007,Direct Transport Costs,5016,"Supply and delivery of 6000 litres road diesel 1.05 per litre to Chorley Council�s Bengal Street Depot, Bengal Street, Chorley",06/06/2018,130028,"6,028.81",Revenue,Samuel Cooke & Co Ltd,17173
Chorley Borough Council,http://statistics.data.gov.uk/id/local-authority/30UE,Service Management & Support,1009,Customer & Digital,Diesel/Derv,30007,Direct Transport Costs,5016,"Supply and delivery of 4000 litres gas oil at 0.58 per litre to Chorley Council�s Bengal Street Depot, Bengal Street, Chorley",06/06/2018,130029,"2,056.84",Revenue,Samuel Cooke & Co Ltd,17173
Chorley Borough Council,http://statistics.data.gov.uk/id/local-authority/30UE,Homelessness,1075,Early Intervention,External Contractor,40198,Miscellaneous Expenses,5034,"For concierge service at Cotswold Supported Housing, Cotswold Road, Chorley, Lancashire, PR7 3HW. For any services ",06/06/2018,129993,"4,617.05",Revenue,Sector Security Services,19269
Chorley Borough Council,http://statistics.data.gov.uk/id/local-authority/30UE,Business Support,1095,Business Development & Growth,Security Service,40062,Services,5027,Security services at Market Walk Shopping Centre from 1st April 2018 to 31st March 19 @6683 per month Contract No 754775,08/06/2018,130128,"6,683.00",Revenue,Securitas Security Services (UK) Ltd,70693
Chorley Borough Council,http://statistics.data.gov.uk/id/local-authority/30UE,Service Management & Support,1009,Customer & Digital,Vehicles and Plant Operating Lease,30029,Contrct Hire & Operating Lease,5018,Lease Rental Ransome Highway 3TM PO16 HNL 27th July 2018 to 26th July 2019,08/06/2018,130111,"4,179.96",Revenue,SG EQUIPMENT FINANCE LTD,18156
Chorley Borough Council,http://statistics.data.gov.uk/id/local-authority/30UE,Service Management & Support,1009,Customer & Digital,Vehicles and Plant Operating Lease,30029,Contrct Hire & Operating Lease,5018,Lease Rental Ransome Highway 3TM PO16 HNM 27th July 2018 to 26th July 2019,08/06/2018,130111,"4,179.96",Revenue,SG EQUIPMENT FINANCE LTD,18156
Chorley Borough Council,http://statistics.data.gov.uk/id/local-authority/30UE,Service Management & Support,1009,Customer & Digital,Vehicles and Plant Operating Lease,30029,Contrct Hire & Operating Lease,5018,Lease Rental Ransome Highway 3TM PO16 HNK 27th July 2018 to 26th July 2019,08/06/2018,130111,"4,179.95",Revenue,SG EQUIPMENT FINANCE LTD,18156
Chorley Borough Council,http://statistics.data.gov.uk/id/local-authority/30UE,Service Management & Support,1009,Customer & Digital,Vehicles and Plant Operating Lease,30029,Contrct Hire & Operating Lease,5018,Lease rental John Deere X950R Ride on Mower from 12/08/18 to 11/08/19,27/06/2018,130476,"1,808.56",Revenue,SG EQUIPMENT FINANCE LTD,18156
Chorley Borough Council,http://statistics.data.gov.uk/id/local-authority/30UE,Service Management & Support,1009,Customer & Digital,Vehicles and Plant Operating Lease,30029,Contrct Hire & Operating Lease,5018,Lease rental for Ransom Highway PO15 HRL 12/08/18 to 11/08/19,27/06/2018,130477,"3,939.50",Revenue,SG EQUIPMENT FINANCE LTD,18156
Chorley Borough Council,http://statistics.data.gov.uk/id/local-authority/30UE,Service Management & Support,1009,Customer & Digital,Vehicles and Plant Operating Lease,30029,Contrct Hire & Operating Lease,5018,Lease rental for Kubota Utility Vehicle PO15 HZB 12/08/18 to 11/08/19,27/06/2018,130477,"1,736.79",Revenue,SG EQUIPMENT FINANCE LTD,18156
Chorley Borough Council,http://statistics.data.gov.uk/id/local-authority/30UE,Economic Development,1096,Business Development & Growth,General Subscriptions,40146,Grants and Subscriptions,5031,For 2018/19 membership of Shout Network,06/06/2018,130024,495.00,Revenue,Shout Network Limited,69551
Chorley Borough Council,http://statistics.data.gov.uk/id/local-authority/30UE,Central Support Services,1009,Customer & Digital,IT Software - Annual Licences,40101,Communication and Computing,5028,Citrix XenApp Service & XenDesktop Service Per User/Device x1 Transition From XenDesktop Platinum User/Device 3 Year ,22/06/2018,128638,"59,996.00",Revenue,Softcat Ltd,69996
Chorley Borough Council,http://statistics.data.gov.uk/id/local-authority/30UE,Homelessness,1075,Early Intervention,Other Contributions,40145,Grants and Subscriptions,5031,Sanctuary Scheme Re-Charge to Chorley 2017/2018,06/06/2018,130073,"3,734.66",Revenue,South Ribble Borough Council,17889
Chorley Borough Council,http://statistics.data.gov.uk/id/local-authority/30UE,Parking Services,1066,Business Development & Growth,Miscellaneous Expenses,40200,Miscellaneous Expenses,5034,park and ride,06/06/2018,129994,"1,341.96",Revenue,Stagecoach Services Limited,18598
Chorley Borough Council,http://statistics.data.gov.uk/id/local-authority/30UE,Corporate Management,1008,Policy & Governance,Other Contributions,40145,Grants and Subscriptions,5031,For the provision of the 7C bus service from 1 April 2018 to 30 June 2018,22/06/2018,130165,"6,911.36",Revenue,Stagecoach Services Limited,18598
Chorley Borough Council,http://statistics.data.gov.uk/id/local-authority/30UE,Unapportionable Central OHeads,1009,Policy & Governance,Exhibitions & Special Events,40158,Miscellaneous Expenses,5034,Picnic park and ride,13/06/2018,130255,256.05,Revenue,Stagecoach Services Limited,18598
Chorley Borough Council,http://statistics.data.gov.uk/id/local-authority/30UE,Capital,Capital,Business Development & Growth,Other Capital Related Fees,3024,Capital Expenditure,Capital,Provision of Public Realm & Highway Design Engineering services as per contract for a period of 30 months from w/c 5th June 17,08/06/2018,130131,"2,925.00",Capital,Street Civil Engineering Limited,76750
Chorley Borough Council,http://statistics.data.gov.uk/id/local-authority/30UE,Unapportionable Central OHeads,1009,Business Development & Growth,General Repairs - Reactive,20004,Repairs Maintenance & Alts,5005,Blanket order for reactive repairs,15/06/2018,129934,286.08,Revenue,Stringfellow Bldg Cntrctrs Ltd,17893
Chorley Borough Council,http://statistics.data.gov.uk/id/local-authority/30UE,Unapportionable Central OHeads,1009,Business Development & Growth,General Repairs - Reactive,20004,Repairs Maintenance & Alts,5005,Blanket order for reactive repairs,15/06/2018,129935,285.00,Revenue,Stringfellow Bldg Cntrctrs Ltd,17893
Chorley Borough Council,http://statistics.data.gov.uk/id/local-authority/30UE,Unapportionable Central OHeads,1009,Business Development & Growth,General Repairs - Reactive,20004,Repairs Maintenance & Alts,5005,Blanket order for reactive repairs,15/06/2018,129939,815.42,Revenue,Stringfellow Bldg Cntrctrs Ltd,17893
Chorley Borough Council,http://statistics.data.gov.uk/id/local-authority/30UE,Unapportionable Central OHeads,1009,Business Development & Growth,General Repairs - Reactive,20004,Repairs Maintenance & Alts,5005,Blanket order for reactive repairs,15/06/2018,129944,275.79,Revenue,Stringfellow Bldg Cntrctrs Ltd,17893
Chorley Borough Council,http://statistics.data.gov.uk/id/local-authority/30UE,Unapportionable Central OHeads,1009,Business Development & Growth,Planned Maintenance,20006,Repairs Maintenance & Alts,5005,please refer to Stringfellows quote CC153 dated 23rd February 18 regarding works to the disabled WC cubicle,15/06/2018,130121,960.00,Revenue,Stringfellow Bldg Cntrctrs Ltd,17893
Chorley Borough Council,http://statistics.data.gov.uk/id/local-authority/30UE,Capital,Capital,Early Intervention,Grants,3002,Capital Expenditure,Capital,ADDRESS REDACTED,20/06/2018,130346,"3,633.65",Capital,Stringfellow Bldg Cntrctrs Ltd,17893
Chorley Borough Council,http://statistics.data.gov.uk/id/local-authority/30UE,Unapportionable Central OHeads,1009,Business Development & Growth,General Repairs - Reactive,20004,Repairs Maintenance & Alts,5005,Blanket order for reactive repairs,27/06/2018,130438,964.67,Revenue,Stringfellow Bldg Cntrctrs Ltd,17893
Chorley Borough Council,http://statistics.data.gov.uk/id/local-authority/30UE,Unapportionable Central OHeads,1009,Business Development & Growth,General Repairs - Reactive,20004,Repairs Maintenance & Alts,5005,Blanket order for reactive repairs,27/06/2018,130445,250.41,Revenue,Stringfellow Bldg Cntrctrs Ltd,17893
Chorley Borough Council,http://statistics.data.gov.uk/id/local-authority/30UE,Service Management & Support,1009,Customer & Digital,External Contractor,40198,Miscellaneous Expenses,5034,"Stone wall rebuilding at Jubilee playing fields, Adlington",27/06/2018,130458,297.35,Revenue,Stringfellow Bldg Cntrctrs Ltd,17893
Chorley Borough Council,http://statistics.data.gov.uk/id/local-authority/30UE,Capital,Capital,Early Intervention,Grants,3002,Capital Expenditure,Capital,grant,22/06/2018,130490,"3,229.25",Capital,Stringfellow Bldg Cntrctrs Ltd,17893
Chorley Borough Council,http://statistics.data.gov.uk/id/local-authority/30UE,Unapportionable Central OHeads,1009,Business Development & Growth,General Repairs - Reactive,20004,Repairs Maintenance & Alts,5005,Blanket order for reactive repairs,27/06/2018,130519,284.95,Revenue,Stringfellow Bldg Cntrctrs Ltd,17893
Chorley Borough Council,http://statistics.data.gov.uk/id/local-authority/30UE,Unapportionable Central OHeads,1009,Business Development & Growth,General Repairs - Reactive,20004,Repairs Maintenance & Alts,5005,Blanket order for reactive repairs,27/06/2018,130520,547.34,Revenue,Stringfellow Bldg Cntrctrs Ltd,17893
Chorley Borough Council,http://statistics.data.gov.uk/id/local-authority/30UE,Unapportionable Central OHeads,1009,Business Development & Growth,General Repairs - Reactive,20004,Repairs Maintenance & Alts,5005,Blanket order for reactive repairs,27/06/2018,130521,"1,440.00",Revenue,Stringfellow Bldg Cntrctrs Ltd,17893
Chorley Borough Council,http://statistics.data.gov.uk/id/local-authority/30UE,Unapportionable Central OHeads,1009,Business Development & Growth,General Repairs - Reactive,20004,Repairs Maintenance & Alts,5005,Blanket order for reactive repairs,27/06/2018,130522,347.40,Revenue,Stringfellow Bldg Cntrctrs Ltd,17893
Chorley Borough Council,http://statistics.data.gov.uk/id/local-authority/30UE,Unapportionable Central OHeads,1009,Business Development & Growth,General Repairs - Reactive,20004,Repairs Maintenance & Alts,5005,Blanket order for reactive repairs,27/06/2018,130526,293.69,Revenue,Stringfellow Bldg Cntrctrs Ltd,17893
Chorley Borough Council,http://statistics.data.gov.uk/id/local-authority/30UE,Homelessness,1075,Early Intervention,Cleaning Materials,40019,"Equipment, Furniture & Materia",5023,Exel PY Colour Coded Mop Head,06/06/2018,129413,5.88,Revenue,Swiftkleen Ltd,17933
Chorley Borough Council,http://statistics.data.gov.uk/id/local-authority/30UE,Homelessness,1075,Early Intervention,Cleaning Materials,40019,"Equipment, Furniture & Materia",5023,Exel Aluminium Colour Coded Mop Handles,06/06/2018,129413,22.62,Revenue,Swiftkleen Ltd,17933
Chorley Borough Council,http://statistics.data.gov.uk/id/local-authority/30UE,Homelessness,1075,Early Intervention,Cleaning Materials,40019,"Equipment, Furniture & Materia",5023,"Atlas Thickened Bleach, 5 Litre",06/06/2018,129413,4.71,Revenue,Swiftkleen Ltd,17933
Chorley Borough Council,http://statistics.data.gov.uk/id/local-authority/30UE,Homelessness,1075,Early Intervention,Cleaning Materials,40019,"Equipment, Furniture & Materia",5023,"Evans Vanodine Pine Gel, Multi Surface, neutral floor gel with pine aroma, 5 Litres",06/06/2018,129413,13.65,Revenue,Swiftkleen Ltd,17933
Chorley Borough Council,http://statistics.data.gov.uk/id/local-authority/30UE,Homelessness,1075,Early Intervention,Cleaning Materials,40019,"Equipment, Furniture & Materia",5023,"Evans Vanodine Everfresh, Perfumed thickened toilet cleaner - 5 litre",06/06/2018,129413,6.76,Revenue,Swiftkleen Ltd,17933
Chorley Borough Council,http://statistics.data.gov.uk/id/local-authority/30UE,Homelessness,1075,Early Intervention,Cleaning Materials,40019,"Equipment, Furniture & Materia",5023,Toilet Brush & Holder - Closed,06/06/2018,129413,13.56,Revenue,Swiftkleen Ltd,17933
Chorley Borough Council,http://statistics.data.gov.uk/id/local-authority/30UE,Homelessness,1075,Early Intervention,Cleaning Materials,40019,"Equipment, Furniture & Materia",5023,Oven Cleaner 5ltr,06/06/2018,129413,5.36,Revenue,Swiftkleen Ltd,17933
Chorley Borough Council,http://statistics.data.gov.uk/id/local-authority/30UE,Homelessness,1075,Early Intervention,Cleaning Materials,40019,"Equipment, Furniture & Materia",5023,Non-Biological Washing Powder 10kg - 100 washes,06/06/2018,129413,8.30,Revenue,Swiftkleen Ltd,17933
Chorley Borough Council,http://statistics.data.gov.uk/id/local-authority/30UE,Homelessness,1075,Early Intervention,Cleaning Materials,40019,"Equipment, Furniture & Materia",5023,Stand-up Long Life Gel Air Freshener (any fragrance) - Case of 12,06/06/2018,129413,10.08,Revenue,Swiftkleen Ltd,17933
Chorley Borough Council,http://statistics.data.gov.uk/id/local-authority/30UE,Homelessness,1075,Early Intervention,Cleaning Materials,40019,"Equipment, Furniture & Materia",5023,Heavy Duty Green Scourers - pack of 10,06/06/2018,129413,1.71,Revenue,Swiftkleen Ltd,17933
Chorley Borough Council,http://statistics.data.gov.uk/id/local-authority/30UE,Homelessness,1075,Early Intervention,Cleaning Materials,40019,"Equipment, Furniture & Materia",5023,Glade Vacuum Fresh fragrance sachets - pack of 3,06/06/2018,129413,1.07,Revenue,Swiftkleen Ltd,17933
Chorley Borough Council,http://statistics.data.gov.uk/id/local-authority/30UE,Homelessness,1075,Early Intervention,Cleaning Materials,40019,"Equipment, Furniture & Materia",5023,Metal Tin Opener,06/06/2018,129413,10.20,Revenue,Swiftkleen Ltd,17933
Chorley Borough Council,http://statistics.data.gov.uk/id/local-authority/30UE,Homelessness,1075,Early Intervention,Tools & Equipment - Purchase,40003,"Equipment, Furniture & Materia",5023,Cheese Grater,06/06/2018,129413,21.96,Revenue,Swiftkleen Ltd,17933
Chorley Borough Council,http://statistics.data.gov.uk/id/local-authority/30UE,Homelessness,1075,Early Intervention,Tools & Equipment - Purchase,40003,"Equipment, Furniture & Materia",5023,Coffee/Tea Mug,06/06/2018,129413,6.00,Revenue,Swiftkleen Ltd,17933
Chorley Borough Council,http://statistics.data.gov.uk/id/local-authority/30UE,Homelessness,1075,Early Intervention,Tools & Equipment - Purchase,40003,"Equipment, Furniture & Materia",5023,Chef`s Utility Knife,06/06/2018,129413,10.50,Revenue,Swiftkleen Ltd,17933
Chorley Borough Council,http://statistics.data.gov.uk/id/local-authority/30UE,Homelessness,1075,Early Intervention,Tools & Equipment - Purchase,40003,"Equipment, Furniture & Materia",5023,Basic Metal Pan Set - set of 3,06/06/2018,129413,29.92,Revenue,Swiftkleen Ltd,17933
Chorley Borough Council,http://statistics.data.gov.uk/id/local-authority/30UE,Homelessness,1075,Early Intervention,Tools & Equipment - Purchase,40003,"Equipment, Furniture & Materia",5023,Electric Kettle - White,06/06/2018,129413,23.86,Revenue,Swiftkleen Ltd,17933
Chorley Borough Council,http://statistics.data.gov.uk/id/local-authority/30UE,Homelessness,1075,Early Intervention,Tools & Equipment - Purchase,40003,"Equipment, Furniture & Materia",5023,Quilts Single Bed 10.5 Tog,06/06/2018,129413,109.60,Revenue,Swiftkleen Ltd,17933
Chorley Borough Council,http://statistics.data.gov.uk/id/local-authority/30UE,Homelessness,1075,Early Intervention,Tools & Equipment - Purchase,40003,"Equipment, Furniture & Materia",5023,Pillows Pack of 2 Medium,06/06/2018,129413,66.72,Revenue,Swiftkleen Ltd,17933
Chorley Borough Council,http://statistics.data.gov.uk/id/local-authority/30UE,Homelessness,1075,Early Intervention,Tools & Equipment - Purchase,40003,"Equipment, Furniture & Materia",5023,"Colour coded Dust Pan and Brush Set, Soft - RED",06/06/2018,129413,12.36,Revenue,Swiftkleen Ltd,17933
Chorley Borough Council,http://statistics.data.gov.uk/id/local-authority/30UE,Homelessness,1075,Early Intervention,Tools & Equipment - Purchase,40003,"Equipment, Furniture & Materia",5023,"2-Ply Interfold Towels White, 3200 per case",06/06/2018,129413,63.00,Revenue,Swiftkleen Ltd,17933
Chorley Borough Council,http://statistics.data.gov.uk/id/local-authority/30UE,Homelessness,1075,Early Intervention,Cleaning Materials,40019,"Equipment, Furniture & Materia",5023,Black Refuse Sacks 180g (Heavy Duty) pack of 200,06/06/2018,129413,46.80,Revenue,Swiftkleen Ltd,17933
Chorley Borough Council,http://statistics.data.gov.uk/id/local-authority/30UE,Homelessness,1075,Early Intervention,Cleaning Materials,40019,"Equipment, Furniture & Materia",5023,Sirius Mini Jumbo Toilet Rolls 200m x 90mm (Pack of 12),06/06/2018,129413,51.66,Revenue,Swiftkleen Ltd,17933
Chorley Borough Council,http://statistics.data.gov.uk/id/local-authority/30UE,Homelessness,1075,Early Intervention,Cleaning Materials,40019,"Equipment, Furniture & Materia",5023,Swing Bin Liners - White,06/06/2018,129413,1.44,Revenue,Swiftkleen Ltd,17933
Chorley Borough Council,http://statistics.data.gov.uk/id/local-authority/30UE,Homelessness,1075,Early Intervention,Cleaning Materials,40019,"Equipment, Furniture & Materia",5023,Evans Handsan - 5Ltr,06/06/2018,129413,33.08,Revenue,Swiftkleen Ltd,17933
Chorley Borough Council,http://statistics.data.gov.uk/id/local-authority/30UE,Homelessness,1075,Early Intervention,Tools & Equipment - Purchase,40003,"Equipment, Furniture & Materia",5023,Basic Shower Curtain,06/06/2018,129413,27.66,Revenue,Swiftkleen Ltd,17933
Chorley Borough Council,http://statistics.data.gov.uk/id/local-authority/30UE,Homelessness,1075,Early Intervention,Cleaning Materials,40019,"Equipment, Furniture & Materia",5023,Blue Nitrile disposable gloves (Medium),06/06/2018,129413,6.20,Revenue,Swiftkleen Ltd,17933
Chorley Borough Council,http://statistics.data.gov.uk/id/local-authority/30UE,Homelessness,1075,Early Intervention,Cleaning Materials,40019,"Equipment, Furniture & Materia",5023,AC-90 Multi Purpose Lubricant,06/06/2018,129413,5.40,Revenue,Swiftkleen Ltd,17933
Chorley Borough Council,http://statistics.data.gov.uk/id/local-authority/30UE,Economic Development,1096,Business Development & Growth,Cleaning Materials,40019,"Equipment, Furniture & Materia",5023,Please supply stores as per e-mail,15/06/2018,130329,393.44,Revenue,System Hygiene Ltd,16572
Chorley Borough Council,http://statistics.data.gov.uk/id/local-authority/30UE,Unapportionable Central OHeads,1009,Policy & Governance,Pensions Increase Act Payments,18005,Indirect Employee Expenses,5002,pension recharge,27/06/2018,130587,"2,743.56",Revenue,Tameside MBC-Gmpf,17034
Chorley Borough Council,http://statistics.data.gov.uk/id/local-authority/30UE,Business Support,1095,Business Development & Growth,Miscellaneous Expenses,40200,Miscellaneous Expenses,5034,Delivery of Ecology Consultancy Services for proposed Digital Office Park - Chorley,27/06/2018,130627,"1,590.00",Revenue,The Environmental Partnership,69544
Chorley Borough Council,http://statistics.data.gov.uk/id/local-authority/30UE,Unapportionable Central OHeads,1009,Policy & Governance,Legal Fees,40171,Miscellaneous Expenses,5034,Arbitration - Appointment Fee - NAME REDACTED,20/06/2018,129988,"1,432.98",Revenue,The Law Society,57091
Chorley Borough Council,http://statistics.data.gov.uk/id/local-authority/30UE,Unapportionable Central OHeads,1009,Policy & Governance,Legal Fees,40171,Miscellaneous Expenses,5034,Legal Fees relating to NH,27/06/2018,130589,350.00,Revenue,Thompsons Solicitors,20255
Chorley Borough Council,http://statistics.data.gov.uk/id/local-authority/30UE,Unapportionable Central OHeads,1009,Business Development & Growth,Fire Alarms,20072,Fixtures and Fittings,5010,to match against credit DL905986,27/06/2018,128621,496.00,Revenue,Tyco Fire & Integrated Solutions,19663
Chorley Borough Council,http://statistics.data.gov.uk/id/local-authority/30UE,Unapportionable Central OHeads,1009,Policy & Governance,Miscellaneous Expenses,40200,Miscellaneous Expenses,5034,co funded,27/06/2018,130569,"1,380.00",Revenue,UK Healthcare (BDHSC),17241
Chorley Borough Council,http://statistics.data.gov.uk/id/local-authority/30UE,Control Accounts,Control,Policy & Governance,General Balances,100,Balance Sheet,Balance,topups,27/06/2018,130569,501.67,Revenue,UK Healthcare (BDHSC),17241
Chorley Borough Council,http://statistics.data.gov.uk/id/local-authority/30UE,Unapportionable Central OHeads,1009,Policy & Governance,Exhibitions & Special Events,40158,Miscellaneous Expenses,5034,Face Painting at Picnic in the Park,06/06/2018,130109,330.00,Revenue,UK Media and Events Limited,71221
Chorley Borough Council,http://statistics.data.gov.uk/id/local-authority/30UE,Unapportionable Central OHeads,1009,Customer & Digital,Service Fees,40056,Services,5027,2018-19 daily hybrid mail & annual billing,08/06/2018,130000,"1,622.52",Revenue,UKMAIL Ltd (Mail),57758
Chorley Borough Council,http://statistics.data.gov.uk/id/local-authority/30UE,Unapportionable Central OHeads,1009,Customer & Digital,Service Fees,40056,Services,5027,2018-19 daily hybrid mail & annual billing,08/06/2018,130017,883.72,Revenue,UKMAIL Ltd (Mail),57758
Chorley Borough Council,http://statistics.data.gov.uk/id/local-authority/30UE,Unapportionable Central OHeads,1009,Customer & Digital,Service Fees,40056,Services,5027,2018-19 daily hybrid mail & annual billing,08/06/2018,130018,622.09,Revenue,UKMAIL Ltd (Mail),57758
Chorley Borough Council,http://statistics.data.gov.uk/id/local-authority/30UE,Unapportionable Central OHeads,1009,Customer & Digital,Service Fees,40056,Services,5027,2018-19 daily hybrid mail & annual billing,08/06/2018,130019,"1,319.88",Revenue,UKMAIL Ltd (Mail),57758
Chorley Borough Council,http://statistics.data.gov.uk/id/local-authority/30UE,Unapportionable Central OHeads,1009,Customer & Digital,Service Fees,40056,Services,5027,2018-19 daily hybrid mail & annual billing,08/06/2018,130020,623.71,Revenue,UKMAIL Ltd (Mail),57758
Chorley Borough Council,http://statistics.data.gov.uk/id/local-authority/30UE,Unapportionable Central OHeads,1009,Customer & Digital,Service Fees,40056,Services,5027,2018-19 daily hybrid mail & annual billing,08/06/2018,130021,"2,693.16",Revenue,UKMAIL Ltd (Mail),57758
Chorley Borough Council,http://statistics.data.gov.uk/id/local-authority/30UE,Business Support,1095,Business Development & Growth,Miscellaneous Expenses,40200,Miscellaneous Expenses,5034,For underwriting delinquent Business Loans for start up service.,20/06/2018,130363,276.98,Revenue,Unify Credit Union Ltd,55509
Chorley Borough Council,http://statistics.data.gov.uk/id/local-authority/30UE,Business Support,1095,Business Development & Growth,Miscellaneous Expenses,40200,Miscellaneous Expenses,5034,For underwriting delinquent Business Loans for start up service.,20/06/2018,130365,500.00,Revenue,Unify Credit Union Ltd,55509
Chorley Borough Council,http://statistics.data.gov.uk/id/local-authority/30UE,Control Accounts,Control,Policy & Governance,General Balances,100,Balance Sheet,Balance,monthly deductions from payroll,20/06/2018,130457,"1,687.16",Revenue,Unify Credit Union Ltd,55509
Chorley Borough Council,http://statistics.data.gov.uk/id/local-authority/30UE,Capital,Capital,Early Intervention,Grants,3002,Capital Expenditure,Capital,grant ADDRESS REDACTED,27/06/2018,130555,"10,000.00",Capital,UPS Building and Maintenance Ltd,76235
Chorley Borough Council,http://statistics.data.gov.uk/id/local-authority/30UE,Capital,Capital,Business Development & Growth,Consultants Fees,3025,Capital Expenditure,Capital,CDM advisor for Chorley Cemetery works,15/06/2018,130129,585.00,Capital,Urban Design and Consult Ltd,77318
Chorley Borough Council,http://statistics.data.gov.uk/id/local-authority/30UE,Planning Policy,1092,Business Development & Growth,Professional Fees,40063,Services,5027,Planning support from NAME REDACTED (Urban Vision) from 3 April 18 - 30 May 18,13/06/2018,130182,"6,319.10",Revenue,Urban Vision Partnership Ltd,21181
Chorley Borough Council,http://statistics.data.gov.uk/id/local-authority/30UE,Central Support Services,1009,Business Development & Growth,Consultants` Fees,40077,Services,5027,Asset valuations for Chorley Borough Council 2017-18 accounts as per your Terms of Engagement reference: 1664792,27/06/2018,130562,"6,618.20",Revenue,Valuation Office Agency,17561
Chorley Borough Council,http://statistics.data.gov.uk/id/local-authority/30UE,Service Management & Support,1009,Customer & Digital,Vehicles and Plant Maintenance,30045,Direct Transport Costs,5016,engineer visit regarding reverse trigger not working on FL66OZH,15/06/2018,130285,260.00,Revenue,Vision Techniques,76339
Chorley Borough Council,http://statistics.data.gov.uk/id/local-authority/30UE,Central Support Services,1009,Customer & Digital,Miscellaneous Expenses,40200,Miscellaneous Expenses,5034,Deep Freeze Standard Maintenance 1 Year x 48 @ 7.01 per unit,29/06/2018,130652,336.48,Revenue,Vohkus Limited,67630
Chorley Borough Council,http://statistics.data.gov.uk/id/local-authority/30UE,Unapportionable Central OHeads,1009,Policy & Governance,Car Leasing Payment,14100,Direct Employee Expenses,5001,NAME REDACTED,06/06/2018,129982,"1,880.88",Revenue,VWFS UK Ltd T/A Volkswagen Group Leasing,56010
Chorley Borough Council,http://statistics.data.gov.uk/id/local-authority/30UE,Unapportionable Central OHeads,1009,Policy & Governance,Car Leasing Payment,14100,Direct Employee Expenses,5001,Car Leasing,06/06/2018,129982,155.20,Revenue,VWFS UK Ltd T/A Volkswagen Group Leasing,56010
Chorley Borough Council,http://statistics.data.gov.uk/id/local-authority/30UE,Control Accounts,Control,Policy & Governance,Manual Control Account,1,Balance Sheet,Balance,Balance Sheet,06/06/2018,129982,-155.20,Revenue,VWFS UK Ltd T/A Volkswagen Group Leasing,56010
Chorley Borough Council,http://statistics.data.gov.uk/id/local-authority/30UE,Unapportionable Central OHeads,1009,Policy & Governance,Car Leasing Payment,14100,Direct Employee Expenses,5001,NAME REDACTED,06/06/2018,129983,544.30,Revenue,VWFS UK Ltd T/A Volkswagen Group Leasing,56010
Chorley Borough Council,http://statistics.data.gov.uk/id/local-authority/30UE,Unapportionable Central OHeads,1009,Policy & Governance,Car Leasing Payment,14100,Direct Employee Expenses,5001,Car Leasing,06/06/2018,129983,48.81,Revenue,VWFS UK Ltd T/A Volkswagen Group Leasing,56010
Chorley Borough Council,http://statistics.data.gov.uk/id/local-authority/30UE,Control Accounts,Control,Policy & Governance,Manual Control Account,1,Balance Sheet,Balance,Balance Sheet,06/06/2018,129983,-48.81,Revenue,VWFS UK Ltd T/A Volkswagen Group Leasing,56010
Chorley Borough Council,http://statistics.data.gov.uk/id/local-authority/30UE,Unapportionable Central OHeads,1009,Policy & Governance,Car Leasing Payment,14100,Direct Employee Expenses,5001,NAME REDACTED,06/06/2018,129984,616.52,Revenue,VWFS UK Ltd T/A Volkswagen Group Leasing,56010
Chorley Borough Council,http://statistics.data.gov.uk/id/local-authority/30UE,Unapportionable Central OHeads,1009,Policy & Governance,Car Leasing Payment,14100,Direct Employee Expenses,5001,Car Leasing,06/06/2018,129984,53.73,Revenue,VWFS UK Ltd T/A Volkswagen Group Leasing,56010
Chorley Borough Council,http://statistics.data.gov.uk/id/local-authority/30UE,Control Accounts,Control,Policy & Governance,Manual Control Account,1,Balance Sheet,Balance,Balance Sheet,06/06/2018,129984,-53.73,Revenue,VWFS UK Ltd T/A Volkswagen Group Leasing,56010
Chorley Borough Council,http://statistics.data.gov.uk/id/local-authority/30UE,Building Control,1090,Policy & Governance,Car Leasing Payment,14100,Direct Employee Expenses,5001,NAME REDACTED,06/06/2018,129985,"3,604.38",Revenue,VWFS UK Ltd T/A Volkswagen Group Leasing,56010
Chorley Borough Council,http://statistics.data.gov.uk/id/local-authority/30UE,Building Control,1090,Policy & Governance,Car Leasing Payment,14100,Direct Employee Expenses,5001,Car Leasing,06/06/2018,129985,300.60,Revenue,VWFS UK Ltd T/A Volkswagen Group Leasing,56010
Chorley Borough Council,http://statistics.data.gov.uk/id/local-authority/30UE,Control Accounts,Control,Policy & Governance,Manual Control Account,1,Balance Sheet,Balance,Balance Sheet,06/06/2018,129985,-300.60,Revenue,VWFS UK Ltd T/A Volkswagen Group Leasing,56010
Chorley Borough Council,http://statistics.data.gov.uk/id/local-authority/30UE,Service Management & Support,1009,Customer & Digital,Supplies-Grounds Maintenance,40025,"Equipment, Furniture & Materia",5023,Supply Summer Bedding Plants2018,27/06/2018,130584,"6,265.41",Revenue,Walkers Oakfield Nurseries,63090
Chorley Borough Council,http://statistics.data.gov.uk/id/local-authority/30UE,Unapportionable Central OHeads,1009,Business Development & Growth,Water - Metered Supplies,20022,Water Services,5009,5/3/18 to 27/5/18,06/06/2018,130096,613.45,Revenue,Water-plus,17926
Chorley Borough Council,http://statistics.data.gov.uk/id/local-authority/30UE,Democratic Represent and  Mgnt,1007,Business Development & Growth,Water - Metered Supplies,20022,Water Services,5009,3/3/18 to 6/6/18,15/06/2018,130332,335.46,Revenue,Water-plus,17926
Chorley Borough Council,http://statistics.data.gov.uk/id/local-authority/30UE,Homelessness,1075,Business Development & Growth,Water - Metered Supplies,20022,Water Services,5009,cotsowld,27/06/2018,130360,"1,526.32",Revenue,Water-plus,17926
Chorley Borough Council,http://statistics.data.gov.uk/id/local-authority/30UE,Economic Development,1096,Business Development & Growth,Water - Metered Supplies,20022,Water Services,5009,10/3/18 to 9/6/18,27/06/2018,130393,648.25,Revenue,Water-plus,17926
Chorley Borough Council,http://statistics.data.gov.uk/id/local-authority/30UE,Democratic Represent and  Mgnt,1007,Business Development & Growth,Water - Metered Supplies,20022,Water Services,5009,2/4/18 to 18/6/18,27/06/2018,130596,981.74,Revenue,Water-plus,17926
Chorley Borough Council,http://statistics.data.gov.uk/id/local-authority/30UE,Democratic Represent and  Mgnt,1007,Business Development & Growth,Water - Metered Supplies,20022,Water Services,5009,29/3/18 to 18/6/18,27/06/2018,130614,"1,007.14",Revenue,Water-plus,17926
Chorley Borough Council,http://statistics.data.gov.uk/id/local-authority/30UE,Unapportionable Central OHeads,1009,Policy & Governance,HR Recruitment - Advertising,15300,Indirect Employee Expenses,5002,Advertising for Tractor/Flail operative,27/06/2018,130610,299.00,Revenue,Websense Recruit Ltd T/A Fill My Vacancy,76200
Chorley Borough Council,http://statistics.data.gov.uk/id/local-authority/30UE,Business Support,1095,Business Development & Growth,Miscellaneous Expenses,40200,Miscellaneous Expenses,5034,Pre Construction Service Agreement costs - Strawberry Fields Digital Office Hub,27/06/2018,130495,"83,312.50",Revenue,Willmott Dixon Constuction Ltd,77420
Chorley Borough Council,http://statistics.data.gov.uk/id/local-authority/30UE,Capital,Capital,Business Development & Growth,Main Contractor,3007,Capital Expenditure,Capital,Design and Build Strawberry Fields Digital Hub - Chorley,27/06/2018,130628,"906,318.14",Capital,Willmott Dixon Constuction Ltd,77420
Chorley Borough Council,http://statistics.data.gov.uk/id/local-authority/30UE,Capital,Capital,Business Development & Growth,Main Contractor,3007,Capital Expenditure,Capital,K00206 / chorley digital office park,29/06/2018,130674,"906,318.14",Capital,Willmott Dixon Constuction Ltd,77420
Chorley Borough Council,http://statistics.data.gov.uk/id/local-authority/30UE,Service Management & Support,1009,Customer & Digital,Vehicles and Plant Maintenance,30045,Direct Transport Costs,5016,Complete repairs to MOT T481 MNB as per your invoice 10970,27/06/2018,130433,"2,955.33",Revenue,Wrekamendid Services Ltd,21188
Chorley Borough Council,http://statistics.data.gov.uk/id/local-authority/30UE,Service Management & Support,1009,Customer & Digital,Vehicles and Plant Maintenance,30045,Direct Transport Costs,5016,mot,27/06/2018,130433,30.00,Revenue,Wrekamendid Services Ltd,21188
Chorley Borough Council,http://statistics.data.gov.uk/id/local-authority/30UE,Service Management & Support,1009,Customer & Digital,Vehicles and Plant Maintenance,30045,Direct Transport Costs,5016,Complete service and MOT PO15 VHE as per your invoice 10963,27/06/2018,130434,258.17,Revenue,Wrekamendid Services Ltd,21188
Chorley Borough Council,http://statistics.data.gov.uk/id/local-authority/30UE,Service Management & Support,1009,Customer & Digital,Vehicles and Plant Maintenance,30045,Direct Transport Costs,5016,mot,27/06/2018,130434,30.00,Revenue,Wrekamendid Services Ltd,21188
Chorley Borough Council,http://statistics.data.gov.uk/id/local-authority/30UE,Service Management & Support,1009,Customer & Digital,Vehicles and Plant Maintenance,30045,Direct Transport Costs,5016,Complete service & MOT to PN15 YWB as per your invoice 10974,27/06/2018,130435,317.12,Revenue,Wrekamendid Services Ltd,21188
Chorley Borough Council,http://statistics.data.gov.uk/id/local-authority/30UE,Service Management & Support,1009,Customer & Digital,Vehicles and Plant Maintenance,30045,Direct Transport Costs,5016,mot,27/06/2018,130435,30.00,Revenue,Wrekamendid Services Ltd,21188
